Workbook

Sheet 1
A1: 表1
A2: 收支预算总表
A3: 市质量技术监督局 | H3: 单位：百元
A4: 收 入 | E4: 支 出
A5: 项 目 | B5: 2019年预算数 | C5: 2018年预算数 | D5: 比上年增长 (%) | E5: 项 目 | F5: 2019年预算数 | G5: 2018年预算数 | H5: 比上年增长 (%)
A6: 一、当年财政拨款收入 | B6: 277073 | C6: 310363 | D6: =IF(AND(C6<>0,TYPE(C6)=1),(B6-C6)/C6*100,0) -> -10.73 | E6: 一、人员支出 | F6: 177798 | G6: 171683 | H6: =IF(AND(G6<>0,TYPE(G6)=1),(F6-G6)/G6*100,0) -> 3.56
A7: 二、行政事业单位教育收费收入 | B7: 0 | D7: 0.00 | E7: 二、日常公用支出 | F7: 50134 | G7: 48525 | H7: 3.32
A8: 三、事业收入 | B8: 25,000 | C8: 65,500 | D8: -61.83 | E8: 三、对个人和家庭的补助 | F8: 543 | G8: 664 | H8: -18.22
A9: 四、事业单位经营收入 | B9: 11,000 | C9: 0 | D9: 0.00 | E9: 四、项目支出 | F9: 84598 | G9: 154991 | H9: -45.42
A10: 五、转移性收入 | B10: 0.0000 | C10: 0.0000 | D10: 0.00 | E10: 五、转移性支出 | H10: 0.00
A11: 六、其他收入 | B11: 0 | C11: 0 | D11: 0.00 | E11: 上缴上级支出 | H11: 0.00
E12: 对附属单位补助支出 | H12: 0.00
A14: 本年收入合计 | B14: =SUM(B6:B11) -> 313073 | C14: =SUM(C6:C11) -> 375863 | D14: =IF(AND(C14<>0,TYPE(C14)=1),(B14-C14)/C14*100,0) -> -16.71 | E14: 本年支出合计 | F14: =SUM(F6:F10) -> 313073 | G14: =SUM(G6:G10) -> 375863 | H14: =IF(AND(G14<>0,TYPE(G14)=1),(F14-G14)/G14*100,0) -> -16.71
A15: 七、用事业基金弥补收支差额 | B15: 0 | C15: 0 | D15: =IF(AND(C15<>0,TYPE(C15)=1),(B15-C15)/C15*100,0) -> 0.00 | E15: 六、事业单位结余分配 | F15: 0 | G15: 0 | H15: =IF(AND(G15<>0,TYPE(G15)=1),(F15-G15)/G15*100,0) -> 0.00
A16: 八、上年结转 | D16: =IF(AND(C16<>0,TYPE(C16)=1),(B16-C16)/C16*100,0) -> 0.00 | E16: 其中：转入事业基金 | F16: 0 | G16: 0 | H16: =IF(AND(G16<>0,TYPE(G16)=1),(F16-G16)/G16*100,0) -> 0.00
A17: 其中：事业单位经营亏损 | E17: 七、结转下年 | F17: 0 | G17: 0 | H17: =IF(AND(G17<>0,TYPE(G17)=1),(F17-G17)/G17*100,0) -> 0.00
E18: 其中：事业单位经营亏损 | F18: 0 | G18: 0 | H18: =IF(AND(G18<>0,TYPE(G18)=1),(F18-G18)/G18*100,0) -> 0.00
A20: 收入总计 | B20: =SUM(B14:B16) -> 313073 | C20: =SUM(C14:C16) -> 375863 | D20: =IF(AND(C20<>0,TYPE(C20)=1),(B20-C20)/C20*100,0) -> -16.71 | E20: 支出总计 | F20: =SUM(F14,F15,F17) -> 313073 | G20: =SUM(G14,G15,G17) -> 375863 | H20: =IF(AND(G20<>0,TYPE(G20)=1),(F20-G20)/G20*100,0) -> -16.71

Sheet 2
A1: 表2
A2: 收入预算表
A3: 市质量技术监督局 | P3: 单位：百元
A4: 项 目 | F4: 总计 | G4: 当年安排 | L4: 上年结转
A5: 科目编码 | D5: 单位代码 | E5: 单位名称 （科目） | G5: 合计 | H5: 财政拨款 | J5: 事业收入、事业单位经营收入 | K5: 其他收入 | L5: 合计 | M5: 上年财政拨款结转 | O5: 上年其他资金结转 | P5: 上年事业单位经营亏损
A6: 类 | B6: 款 | C6: 项 | H6: 小计 | I6: 其中：经费拨款 | M6: 小计 | N6: 其中：经费拨款结转
A7: ** | B7: ** | C7: ** | D7: ** | E7: ** | F7: 1 | G7: 2 | H7: 3 | I7: 4 | J7: 5 | K7: 6 | L7: 7 | M7: 8 | N7: 9 | O7: 10 | P7: 11
E8: 合计 | F8: 313073 | G8: 313073 | H8: 277073 | I8: 176297 | J8: 36000 | K8: 0 | L8: 0 | M8: 0 | N8: 0 | O8: 0 | P8: 0
E9: 市质量技术监督局 | F9: 313073 | G9: 313073 | H9: 277073 | I9: 176297 | J9: 36000 | K9: 0 | L9: 0 | M9: 0 | N9: 0 | O9: 0 | P9: 0
E10: 市质量技术监督局 | F10: 89216 | G10: 89216 | H10: 89216 | I10: 83706 | J10: 0 | K10: 0 | L10: 0 | M10: 0 | N10: 0 | O10: 0 | P10: 0
A11: 201 | B11: 38 | C11: 01 | D11: 358301 | E11: 行政运行 | F11: 59576 | G11: 59576 | H11: 59576 | I11: 57372 | J11: 0 | K11: 0 | L11: 0 | M11: 0 | N11: 0 | O11: 0 | P11: 0
A12: 201 | B12: 38 | C12: 02 | D12: 358301 | E12: 一般行政管理事务 | F12: 8514 | G12: 8514 | H12: 8514 | I12: 5208 | J12: 0 | K12: 0 | L12: 0 | M12: 0 | N12: 0 | O12: 0 | P12: 0
A13: 201 | B13: 38 | C13: 03 | D13: 358301 | E13: 机关服务 | F13: 3100 | G13: 3100 | H13: 3100 | I13: 3100 | J13: 0 | K13: 0 | L13: 0 | M13: 0 | N13: 0 | O13: 0 | P13: 0
A14: 208 | B14: 05 | C14: 01 | D14: 358301 | E14: 归口管理的行政单位离退休 | F14: 143 | G14: 143 | H14: 143 | I14: 143 | J14: 0 | K14: 0 | L14: 0 | M14: 0 | N14: 0 | O14: 0 | P14: 0
A15: 208 | B15: 05 | C15: 05 | D15: 358301 | E15: 机关事业单位基本养老保险缴费支出 | F15: 7939 | G15: 7939 | H15: 7939 | I15: 7939 | J15: 0 | K15: 0 | L15: 0 | M15: 0 | N15: 0 | O15: 0 | P15: 0
A16: 210 | B16: 11 | C16: 01 | D16: 358301 | E16: 行政单位医疗 | F16: 3580 | G16: 3580 | H16: 3580 | I16: 3580 | J16: 0 | K16: 0 | L16: 0 | M16: 0 | N16: 0 | O16: 0 | P16: 0
A17: 221 | B17: 02 | C17: 01 | D17: 358301 | E17: 住房公积金 | F17: 6364 | G17: 6364 | H17: 6364 | I17: 6364 | J17: 0 | K17: 0 | L17: 0 | M17: 0 | N17: 0 | O17: 0 | P17: 0
E18: 市产品质量监督检验所 | F18: 45024 | G18: 45024 | H18: 34024 | I18: 15249 | J18: 11000 | K18: 0 | L18: 0 | M18: 0 | N18: 0 | O18: 0 | P18: 0
A19: 201 | B19: 38 | C19: 09 | D19: 358601 | E19: 市场监督管理技术支持 | F19: 16400 | G19: 16400 | H19: 6400 | I19: 6400 | J19: 10000 | K19: 0 | L19: 0 | M19: 0 | N19: 0 | O19: 0 | P19: 0
A20: 201 | B20: 38 | C20: 50 | D20: 358601 | E20: 事业运行 | F20: 19814 | G20: 19814 | H20: 19814 | I20: 8709 | J20: 0 | K20: 0 | L20: 0 | M20: 0 | N20: 0 | O20: 0 | P20: 0
A21: 201 | B21: 38 | C21: 99 | D21: 358601 | E21: 其他市场监督管理事务 | F21: 1140 | G21: 1140 | H21: 140 | I21: 140 | J21: 1000 | K21: 0 | L21: 0 | M21: 0 | N21: 0 | O21: 0 | P21: 0
A22: 208 | B22: 05 | C22: 02 | D22: 358601 | E22: 事业单位离退休 | F22: 17 | G22: 17 | H22: 17 | I22: 0 | J22: 0 | K22: 0 | L22: 0 | M22: 0 | N22: 0 | O22: 0 | P22: 0
A23: 208 | B23: 05 | C23: 05 | D23: 358601 | E23: 机关事业单位基本养老保险缴费支出 | F23: 2944 | G23: 2944 | H23: 2944 | I23: 0 | J23: 0 | K23: 0 | L23: 0 | M23: 0 | N23: 0 | O23: 0 | P23: 0
A24: 208 | B24: 05 | C24: 06 | D24: 358601 | E24: 机关事业单位职业年金缴费支出 | F24: 1178 | G24: 1178 | H24: 1178 | I24: 0 | J24: 0 | K24: 0 | L24: 0 | M24: 0 | N24: 0 | O24: 0 | P24: 0
A25: 210 | B25: 11 | C25: 02 | D25: 358601 | E25: 事业单位医疗 | F25: 1116 | G25: 1116 | H25: 1116 | I25: 0 | J25: 0 | K25: 0 | L25: 0 | M25: 0 | N25: 0 | O25: 0 | P25: 0
A26: 221 | B26: 02 | C26: 01 | D26: 358601 | E26: 住房公积金 | F26: 2415 | G26: 2415 | H26: 2415 | I26: 0 | J26: 0 | K26: 0 | L26: 0 | M26: 0 | N26: 0 | O26: 0 | P26: 0
E27: 市计量检定测试所 | F27: 61423 | G27: 61423 | H27: 37423 | I27: 12054 | J27: 24000 | K27: 0 | L27: 0 | M27: 0 | N27: 0 | O27: 0 | P27: 0
A28: 201 | B28: 38 | C28: 09 | D28: 358602 | E28: 市场监督管理技术支持 | F28: 24000 | G28: 24000 | H28: 0 | I28: 0 | J28: 24000 | K28: 0 | L28: 0 | M28: 0 | N28: 0 | O28: 0 | P28: 0
A29: 201 | B29: 38 | C29: 50 | D29: 358602 | E29: 事业运行 | F29: 26759 | G29: 26759 | H29: 26759 | I29: 11682 | J29: 0 | K29: 0 | L29: 0 | M29: 0 | N29: 0 | O29: 0 | P29: 0
A30: 201 | B30: 38 | C30: 99 | D30: 358602 | E30: 其他市场监督管理事务 | F30: 372 | G30: 372 | H30: 372 | I30: 372 | J30: 0 | K30: 0 | L30: 0 | M30: 0 | N30: 0 | O30: 0 | P30: 0
A31: 208 | B31: 05 | C31: 02 | D31: 358602 | E31: 事业单位离退休 | F31: 26 | G31: 26 | H31: 26 | I31: 0 | J31: 0 | K31: 0 | L31: 0 | M31: 0 | N31: 0 | O31: 0 | P31: 0
A32: 208 | B32: 05 | C32: 05 | D32: 358602 | E32: 机关事业单位基本养老保险缴费支出 | F32: 3950 | G32: 3950 | H32: 3950 | I32: 0 | J32: 0 | K32: 0 | L32: 0 | M32: 0 | N32: 0 | O32: 0 | P32: 0
A33: 208 | B33: 05 | C33: 06 | D33: 358602 | E33: 机关事业单位职业年金缴费支出 | F33: 1580 | G33: 1580 | H33: 1580 | I33: 0 | J33: 0 | K33: 0 | L33: 0 | M33: 0 | N33: 0 | O33: 0 | P33: 0
A34: 210 | B34: 11 | C34: 02 | D34: 358602 | E34: 事业单位医疗 | F34: 1502 | G34: 1502 | H34: 1502 | I34: 0 | J34: 0 | K34: 0 | L34: 0 | M34: 0 | N34: 0 | O34: 0 | P34: 0
A35: 221 | B35: 02 | C35: 01 | D35: 358602 | E35: 住房公积金 | F35: 3234 | G35: 3234 | H35: 3234 | I35: 0 | J35: 0 | K35: 0 | L35: 0 | M35: 0 | N35: 0 | O35: 0 | P35: 0
E36: 市特种设备监督检验所 | F36: 50462 | G36: 50462 | H36: 49462 | I36: 140 | J36: 1000 | K36: 0 | L36: 0 | M36: 0 | N36: 0 | O36: 0 | P36: 0
A37: 201 | B37: 38 | C37: 09 | D37: 358603 | E37: 市场监督管理技术支持 | F37: 30000 | G37: 30000 | H37: 29000 | I37: 0 | J37: 1000 | K37: 0 | L37: 0 | M37: 0 | N37: 0 | O37: 0 | P37: 0
A38: 201 | B38: 38 | C38: 50 | D38: 358603 | E38: 事业运行 | F38: 14663 | G38: 14663 | H38: 14663 | I38: 0 | J38: 0 | K38: 0 | L38: 0 | M38: 0 | N38: 0 | O38: 0 | P38: 0
A39: 201 | B39: 38 | C39: 99 | D39: 358603 | E39: 其他市场监督管理事务 | F39: 140 | G39: 140 | H39: 140 | I39: 140 | J39: 0 | K39: 0 | L39: 0 | M39: 0 | N39: 0 | O39: 0 | P39: 0
A40: 208 | B40: 05 | C40: 02 | D40: 358603 | E40: 事业单位离退休 | F40: 39 | G40: 39 | H40: 39 | I40: 0 | J40: 0 | K40: 0 | L40: 0 | M40: 0 | N40: 0 | O40: 0 | P40: 0
A41: 208 | B41: 05 | C41: 05 | D41: 358603 | E41: 机关事业单位基本养老保险缴费支出 | F41: 2161 | G41: 2161 | H41: 2161 | I41: 0 | J41: 0 | K41: 0 | L41: 0 | M41: 0 | N41: 0 | O41: 0 | P41: 0
A42: 208 | B42: 05 | C42: 06 | D42: 358603 | E42: 机关事业单位职业年金缴费支出 | F42: 865 | G42: 865 | H42: 865 | I42: 0 | J42: 0 | K42: 0 | L42: 0 | M42: 0 | N42: 0 | O42: 0 | P42: 0
A43: 210 | B43: 11 | C43: 02 | D43: 358603 | E43: 事业单位医疗 | F43: 811 | G43: 811 | H43: 811 | I43: 0 | J43: 0 | K43: 0 | L43: 0 | M43: 0 | N43: 0 | O43: 0 | P43: 0
A44: 221 | B44: 02 | C44: 01 | D44: 358603 | E44: 住房公积金 | F44: 1783 | G44: 1783 | H44: 1783 | I44: 0 | J44: 0 | K44: 0 | L44: 0 | M44: 0 | N44: 0 | O44: 0 | P44: 0
E45: 市质量技术监督局利州分局 | F45: 30106 | G45: 30106 | H45: 30106 | I45: 29106 | J45: 0 | K45: 0 | L45: 0 | M45: 0 | N45: 0 | O45: 0 | P45: 0
A46: 201 | B46: 38 | C46: 01 | D46: 358604 | E46: 行政运行 | F46: 18047 | G46: 18047 | H46: 18047 | I46: 17547 | J46: 0 | K46: 0 | L46: 0 | M46: 0 | N46: 0 | O46: 0 | P46: 0
A47: 201 | B47: 38 | C47: 02 | D47: 358604 | E47: 一般行政管理事务 | F47: 500 | G47: 500 | H47: 500 | I47: 0 | J47: 0 | K47: 0 | L47: 0 | M47: 0 | N47: 0 | O47: 0 | P47: 0
A48: 201 | B48: 38 | C48: 50 | D48: 358604 | E48: 事业运行 | F48: 4746 | G48: 4746 | H48: 4746 | I48: 4746 | J48: 0 | K48: 0 | L48: 0 | M48: 0 | N48: 0 | O48: 0 | P48: 0
A49: 208 | B49: 05 | C49: 01 | D49: 358604 | E49: 归口管理的行政单位离退休 | F49: 31 | G49: 31 | H49: 31 | I49: 31 | J49: 0 | K49: 0 | L49: 0 | M49: 0 | N49: 0 | O49: 0 | P49: 0
A50: 208 | B50: 05 | C50: 05 | D50: 358604 | E50: 机关事业单位基本养老保险缴费支出 | F50: 3081 | G50: 3081 | H50: 3081 | I50: 3081 | J50: 0 | K50: 0 | L50: 0 | M50: 0 | N50: 0 | O50: 0 | P50: 0
A51: 210 | B51: 11 | C51: 01 | D51: 358604 | E51: 行政单位医疗 | F51: 1156 | G51: 1156 | H51: 1156 | I51: 1156 | J51: 0 | K51: 0 | L51: 0 | M51: 0 | N51: 0 | O51: 0 | P51: 0
A52: 221 | B52: 02 | C52: 01 | D52: 358604 | E52: 住房公积金 | F52: 2545 | G52: 2545 | H52: 2545 | I52: 2545 | J52: 0 | K52: 0 | L52: 0 | M52: 0 | N52: 0 | O52: 0 | P52: 0
E53: 市质量技术监督局昭化分局 | F53: 20132 | G53: 20132 | H53: 20132 | I53: 19732 | J53: 0 | K53: 0 | L53: 0 | M53: 0 | N53: 0 | O53: 0 | P53: 0
A54: 201 | B54: 38 | C54: 01 | D54: 358605 | E54: 行政运行 | F54: 13567 | G54: 13567 | H54: 13567 | I54: 13367 | J54: 0 | K54: 0 | L54: 0 | M54: 0 | N54: 0 | O54: 0 | P54: 0
A55: 201 | B55: 38 | C55: 02 | D55: 358605 | E55: 一般行政管理事务 | F55: 200 | G55: 200 | H55: 200 | I55: 0 | J55: 0 | K55: 0 | L55: 0 | M55: 0 | N55: 0 | O55: 0 | P55: 0
A56: 201 | B56: 38 | C56: 50 | D56: 358605 | E56: 事业运行 | F56: 1771 | G56: 1771 | H56: 1771 | I56: 1771 | J56: 0 | K56: 0 | L56: 0 | M56: 0 | N56: 0 | O56: 0 | P56: 0
A57: 208 | B57: 05 | C57: 01 | D57: 358605 | E57: 归口管理的行政单位离退休 | F57: 3 | G57: 3 | H57: 3 | I57: 3 | J57: 0 | K57: 0 | L57: 0 | M57: 0 | N57: 0 | O57: 0 | P57: 0
A58: 208 | B58: 05 | C58: 05 | D58: 358605 | E58: 机关事业单位基本养老保险缴费支出 | F58: 2052 | G58: 2052 | H58: 2052 | I58: 2052 | J58: 0 | K58: 0 | L58: 0 | M58: 0 | N58: 0 | O58: 0 | P58: 0
A59: 210 | B59: 11 | C59: 01 | D59: 358605 | E59: 行政单位医疗 | F59: 831 | G59: 831 | H59: 831 | I59: 831 | J59: 0 | K59: 0 | L59: 0 | M59: 0 | N59: 0 | O59: 0 | P59: 0
A60: 221 | B60: 02 | C60: 01 | D60: 358605 | E60: 住房公积金 | F60: 1708 | G60: 1708 | H60: 1708 | I60: 1708 | J60: 0 | K60: 0 | L60: 0 | M60: 0 | N60: 0 | O60: 0 | P60: 0
E61: 市质量技术监督局朝天分局 | F61: 16710 | G61: 16710 | H61: 16710 | I61: 16310 | J61: 0 | K61: 0 | L61: 0 | M61: 0 | N61: 0 | O61: 0 | P61: 0
A62: 201 | B62: 38 | C62: 01 | D62: 358606 | E62: 行政运行 | F62: 12405 | G62: 12405 | H62: 12405 | I62: 12205 | J62: 0 | K62: 0 | L62: 0 | M62: 0 | N62: 0 | O62: 0 | P62: 0
A63: 201 | B63: 38 | C63: 02 | D63: 358606 | E63: 一般行政管理事务 | F63: 232 | G63: 232 | H63: 232 | I63: 32 | J63: 0 | K63: 0 | L63: 0 | M63: 0 | N63: 0 | O63: 0 | P63: 0
A64: 201 | B64: 38 | C64: 50 | D64: 358606 | E64: 事业运行 | F64: 400 | G64: 400 | H64: 400 | I64: 400 | J64: 0 | K64: 0 | L64: 0 | M64: 0 | N64: 0 | O64: 0 | P64: 0
A65: 208 | B65: 05 | C65: 01 | D65: 358606 | E65: 归口管理的行政单位离退休 | F65: 48 | G65: 48 | H65: 48 | I65: 48 | J65: 0 | K65: 0 | L65: 0 | M65: 0 | N65: 0 | O65: 0 | P65: 0
A66: 208 | B66: 05 | C66: 05 | D66: 358606 | E66: 机关事业单位基本养老保险缴费支出 | F66: 1640 | G66: 1640 | H66: 1640 | I66: 1640 | J66: 0 | K66: 0 | L66: 0 | M66: 0 | N66: 0 | O66: 0 | P66: 0
A67: 210 | B67: 11 | C67: 01 | D67: 358606 | E67: 行政单位医疗 | F67: 615 | G67: 615 | H67: 615 | I67: 615 | J67: 0 | K67: 0 | L67: 0 | M67: 0 | N67: 0 | O67: 0 | P67: 0
A68: 221 | B68: 02 | C68: 01 | D68: 358606 | E68: 住房公积金 | F68: 1370 | G68: 1370 | H68: 1370 | I68: 1370 | J68: 0 | K68: 0 | L68: 0 | M68: 0 | N68: 0 | O68: 0 | P68: 0

Sheet 3
A1: 表3
A2: 支出预算表
A3: 市质量技术监督局 | K3: 单位：百元
A4: 项 目 | F4: 合计 | G4: 基本支出 | K4: 专项支出
A5: 科目编码 | D5: 单位代码 | E5: 单位名称 （科目） | G5: 小计 | H5: 工资福利支出 | I5: 商品和服务支出 | J5: 对个人和家庭的补助
A6: 类 | B6: 款 | C6: 项
A7: ** | B7: ** | C7: ** | D7: ** | E7: ** | F7: 1 | G7: 2 | H7: 3 | I7: 4 | J7: 5 | K7: 6
E8: 合计 | F8: 313073 | G8: 228475 | H8: 177798 | I8: 50134 | J8: 543 | K8: 84598
E9: 市质量技术监督局 | F9: 313073 | G9: 228475 | H9: 177798 | I9: 50134 | J9: 543 | K9: 84598
E10: 市质量技术监督局 | F10: 89216 | G10: 77602 | H10: 57632 | I10: 19583 | J10: 387 | K10: 11614
A11: 201 | B11: 38 | C11: 01 | D11: 358301 | E11: 行政运行 | F11: 59576 | G11: 59576 | H11: 40136 | I11: 19440 | J11: 0 | K11: 0
A12: 201 | B12: 38 | C12: 02 | D12: 358301 | E12: 一般行政管理事务 | F12: 8514 | G12: 0 | H12: 0 | I12: 0 | J12: 0 | K12: 8514
A13: 201 | B13: 38 | C13: 03 | D13: 358301 | E13: 机关服务 | F13: 3100 | G13: 0 | H13: 0 | I13: 0 | J13: 0 | K13: 3100
A14: 208 | B14: 05 | C14: 01 | D14: 358301 | E14: 归口管理的行政单位离退休 | F14: 143 | G14: 143 | H14: 0 | I14: 143 | J14: 0 | K14: 0
A15: 208 | B15: 05 | C15: 05 | D15: 358301 | E15: 机关事业单位基本养老保险缴费支出 | F15: 7939 | G15: 7939 | H15: 7939 | I15: 0 | J15: 0 | K15: 0
A16: 210 | B16: 11 | C16: 01 | D16: 358301 | E16: 行政单位医疗 | F16: 3580 | G16: 3580 | H16: 3193 | I16: 0 | J16: 387 | K16: 0
A17: 221 | B17: 02 | C17: 01 | D17: 358301 | E17: 住房公积金 | F17: 6364 | G17: 6364 | H17: 6364 | I17: 0 | J17: 0 | K17: 0
E18: 市产品质量监督检验所 | F18: 45024 | G18: 27484 | H18: 22855 | I18: 4617 | J18: 12 | K18: 17540
A19: 201 | B19: 38 | C19: 09 | D19: 358601 | E19: 市场监督管理技术支持 | F19: 16400 | G19: 0 | H19: 0 | I19: 0 | J19: 0 | K19: 16400
A20: 201 | B20: 38 | C20: 50 | D20: 358601 | E20: 事业运行 | F20: 19814 | G20: 19814 | H20: 15214 | I20: 4600 | J20: 0 | K20: 0
A21: 201 | B21: 38 | C21: 99 | D21: 358601 | E21: 其他市场监督管理事务 | F21: 1140 | G21: 0 | H21: 0 | I21: 0 | J21: 0 | K21: 1140
A22: 208 | B22: 05 | C22: 02 | D22: 358601 | E22: 事业单位离退休 | F22: 17 | G22: 17 | H22: 0 | I22: 17 | J22: 0 | K22: 0
A23: 208 | B23: 05 | C23: 05 | D23: 358601 | E23: 机关事业单位基本养老保险缴费支出 | F23: 2944 | G23: 2944 | H23: 2944 | I23: 0 | J23: 0 | K23: 0
A24: 208 | B24: 05 | C24: 06 | D24: 358601 | E24: 机关事业单位职业年金缴费支出 | F24: 1178 | G24: 1178 | H24: 1178 | I24: 0 | J24: 0 | K24: 0
A25: 210 | B25: 11 | C25: 02 | D25: 358601 | E25: 事业单位医疗 | F25: 1116 | G25: 1116 | H25: 1104 | I25: 0 | J25: 12 | K25: 0
A26: 221 | B26: 02 | C26: 01 | D26: 358601 | E26: 住房公积金 | F26: 2415 | G26: 2415 | H26: 2415 | I26: 0 | J26: 0 | K26: 0
E27: 市计量检定测试所 | F27: 61423 | G27: 37051 | H27: 30669 | I27: 6362 | J27: 20 | K27: 24372
A28: 201 | B28: 38 | C28: 09 | D28: 358602 | E28: 市场监督管理技术支持 | F28: 24000 | G28: 0 | H28: 0 | I28: 0 | J28: 0 | K28: 24000
A29: 201 | B29: 38 | C29: 50 | D29: 358602 | E29: 事业运行 | F29: 26759 | G29: 26759 | H29: 20423 | I29: 6336 | J29: 0 | K29: 0
A30: 201 | B30: 38 | C30: 99 | D30: 358602 | E30: 其他市场监督管理事务 | F30: 372 | G30: 0 | H30: 0 | I30: 0 | J30: 0 | K30: 372
A31: 208 | B31: 05 | C31: 02 | D31: 358602 | E31: 事业单位离退休 | F31: 26 | G31: 26 | H31: 0 | I31: 26 | J31: 0 | K31: 0
A32: 208 | B32: 05 | C32: 05 | D32: 358602 | E32: 机关事业单位基本养老保险缴费支出 | F32: 3950 | G32: 3950 | H32: 3950 | I32: 0 | J32: 0 | K32: 0
A33: 208 | B33: 05 | C33: 06 | D33: 358602 | E33: 机关事业单位职业年金缴费支出 | F33: 1580 | G33: 1580 | H33: 1580 | I33: 0 | J33: 0 | K33: 0
A34: 210 | B34: 11 | C34: 02 | D34: 358602 | E34: 事业单位医疗 | F34: 1502 | G34: 1502 | H34: 1482 | I34: 0 | J34: 20 | K34: 0
A35: 221 | B35: 02 | C35: 01 | D35: 358602 | E35: 住房公积金 | F35: 3234 | G35: 3234 | H35: 3234 | I35: 0 | J35: 0 | K35: 0
E36: 市特种设备监督检验所 | F36: 50462 | G36: 20322 | H36: 16792 | I36: 3505 | J36: 25 | K36: 30140
A37: 201 | B37: 38 | C37: 09 | D37: 358603 | E37: 市场监督管理技术支持 | F37: 30000 | G37: 0 | H37: 0 | I37: 0 | J37: 0 | K37: 30000
A38: 201 | B38: 38 | C38: 50 | D38: 358603 | E38: 事业运行 | F38: 14663 | G38: 14663 | H38: 11172 | I38: 3491 | J38: 0 | K38: 0
A39: 201 | B39: 38 | C39: 99 | D39: 358603 | E39: 其他市场监督管理事务 | F39: 140 | G39: 0 | H39: 0 | I39: 0 | J39: 0 | K39: 140
A40: 208 | B40: 05 | C40: 02 | D40: 358603 | E40: 事业单位离退休 | F40: 39 | G40: 39 | H40: 0 | I40: 14 | J40: 25 | K40: 0
A41: 208 | B41: 05 | C41: 05 | D41: 358603 | E41: 机关事业单位基本养老保险缴费支出 | F41: 2161 | G41: 2161 | H41: 2161 | I41: 0 | J41: 0 | K41: 0
A42: 208 | B42: 05 | C42: 06 | D42: 358603 | E42: 机关事业单位职业年金缴费支出 | F42: 865 | G42: 865 | H42: 865 | I42: 0 | J42: 0 | K42: 0
A43: 210 | B43: 11 | C43: 02 | D43: 358603 | E43: 事业单位医疗 | F43: 811 | G43: 811 | H43: 811 | I43: 0 | J43: 0 | K43: 0
A44: 221 | B44: 02 | C44: 01 | D44: 358603 | E44: 住房公积金 | F44: 1783 | G44: 1783 | H44: 1783 | I44: 0 | J44: 0 | K44: 0
E45: 市质量技术监督局利州分局 | F45: 30106 | G45: 29606 | H45: 22508 | I45: 7059 | J45: 39 | K45: 500
A46: 201 | B46: 38 | C46: 01 | D46: 358604 | E46: 行政运行 | F46: 18047 | G46: 18047 | H46: 13219 | I46: 4828 | J46: 0 | K46: 0
A47: 201 | B47: 38 | C47: 02 | D47: 358604 | E47: 一般行政管理事务 | F47: 500 | G47: 0 | H47: 0 | I47: 0 | J47: 0 | K47: 500
A48: 201 | B48: 38 | C48: 50 | D48: 358604 | E48: 事业运行 | F48: 4746 | G48: 4746 | H48: 2507 | I48: 2200 | J48: 39 | K48: 0
A49: 208 | B49: 05 | C49: 01 | D49: 358604 | E49: 归口管理的行政单位离退休 | F49: 31 | G49: 31 | H49: 0 | I49: 31 | J49: 0 | K49: 0
A50: 208 | B50: 05 | C50: 05 | D50: 358604 | E50: 机关事业单位基本养老保险缴费支出 | F50: 3081 | G50: 3081 | H50: 3081 | I50: 0 | J50: 0 | K50: 0
A51: 210 | B51: 11 | C51: 01 | D51: 358604 | E51: 行政单位医疗 | F51: 1156 | G51: 1156 | H51: 1156 | I51: 0 | J51: 0 | K51: 0
A52: 221 | B52: 02 | C52: 01 | D52: 358604 | E52: 住房公积金 | F52: 2545 | G52: 2545 | H52: 2545 | I52: 0 | J52: 0 | K52: 0
E53: 市质量技术监督局昭化分局 | F53: 20132 | G53: 19932 | H53: 15004 | I53: 4907 | J53: 21 | K53: 200
A54: 201 | B54: 38 | C54: 01 | D54: 358605 | E54: 行政运行 | F54: 13567 | G54: 13567 | H54: 9642 | I54: 3904 | J54: 21 | K54: 0
A55: 201 | B55: 38 | C55: 02 | D55: 358605 | E55: 一般行政管理事务 | F55: 200 | G55: 0 | H55: 0 | I55: 0 | J55: 0 | K55: 200
A56: 201 | B56: 38 | C56: 50 | D56: 358605 | E56: 事业运行 | F56: 1771 | G56: 1771 | H56: 771 | I56: 1000 | J56: 0 | K56: 0
A57: 208 | B57: 05 | C57: 01 | D57: 358605 | E57: 归口管理的行政单位离退休 | F57: 3 | G57: 3 | H57: 0 | I57: 3 | J57: 0 | K57: 0
A58: 208 | B58: 05 | C58: 05 | D58: 358605 | E58: 机关事业单位基本养老保险缴费支出 | F58: 2052 | G58: 2052 | H58: 2052 | I58: 0 | J58: 0 | K58: 0
A59: 210 | B59: 11 | C59: 01 | D59: 358605 | E59: 行政单位医疗 | F59: 831 | G59: 831 | H59: 831 | I59: 0 | J59: 0 | K59: 0
A60: 221 | B60: 02 | C60: 01 | D60: 358605 | E60: 住房公积金 | F60: 1708 | G60: 1708 | H60: 1708 | I60: 0 | J60: 0 | K60: 0
E61: 市质量技术监督局朝天分局 | F61: 16710 | G61: 16478 | H61: 12338 | I61: 4101 | J61: 39 | K61: 232
A62: 201 | B62: 38 | C62: 01 | D62: 358606 | E62: 行政运行 | F62: 12405 | G62: 12405 | H62: 8713 | I62: 3692 | J62: 0 | K62: 0
A63: 201 | B63: 38 | C63: 02 | D63: 358606 | E63: 一般行政管理事务 | F63: 232 | G63: 0 | H63: 0 | I63: 0 | J63: 0 | K63: 232
A64: 201 | B64: 38 | C64: 50 | D64: 358606 | E64: 事业运行 | F64: 400 | G64: 400 | H64: 0 | I64: 400 | J64: 0 | K64: 0
A65: 208 | B65: 05 | C65: 01 | D65: 358606 | E65: 归口管理的行政单位离退休 | F65: 48 | G65: 48 | H65: 0 | I65: 9 | J65: 39 | K65: 0
A66: 208 | B66: 05 | C66: 05 | D66: 358606 | E66: 机关事业单位基本养老保险缴费支出 | F66: 1640 | G66: 1640 | H66: 1640 | I66: 0 | J66: 0 | K66: 0
A67: 210 | B67: 11 | C67: 01 | D67: 358606 | E67: 行政单位医疗 | F67: 615 | G67: 615 | H67: 615 | I67: 0 | J67: 0 | K67: 0
A68: 221 | B68: 02 | C68: 01 | D68: 358606 | E68: 住房公积金 | F68: 1370 | G68: 1370 | H68: 1370 | I68: 0 | J68: 0 | K68: 0

Sheet 4
A1: 表4
A2: 财政拨款收支总表
A3: 市质量技术监督局 | H3: 单位：百元
A4: 收 入 | E4: 支 出
A5: 项 目 | B5: 2019年预算数 | C5: 2018年预算数 | D5: 比上年增长 (%) | E5: 项 目 | F5: 2019年预算数 | G5: 2018年预算数 | H5: 比上年增长 (%)
A6: 一、当年财政拨款收入 | B6: =SUM(B7:B9) -> 277073 | C6: =SUM(C7:C9) -> 310363 | D6: =IF(AND(C6<>0,TYPE(C6)=1),(B6-C6)/C6*100,0) -> -10.73 | E6: 一、人员支出 | F6: 177798 | G6: 171683 | H6: =IF(AND(G6<>0,TYPE(G6)=1),(F6-G6)/G6*100,0) -> 3.56
A7: 一般公共预算拨款收入 | B7: 277073 | C7: 310363 | D7: -10.73 | E7: 二、日常公用支出 | F7: 50134 | G7: 48525 | H7: =IF(AND(G7<>0,TYPE(G7)=1),(F7-G7)/G7*100,0) -> 3.32
A8: 政府性基金预算拨款收入 | B8: 0 | C8: 0 | D8: 0.00 | E8: 三、对个人和家庭的补助 | F8: 543 | G8: 664 | H8: =IF(AND(G8<>0,TYPE(G8)=1),(F8-G8)/G8*100,0) -> -18.22
A9: 国有资本经营预算拨款收入 | B9: 0 | C9: 0 | D9: 0.00 | E9: 四、项目支出 | F9: 48598 | G9: 89491 | H9: =IF(AND(G9<>0,TYPE(G9)=1),(F9-G9)/G9*100,0) -> -45.70
A10: 二、上年结转 | B10: =SUM(B11:B13) -> 0 | C10: =SUM(C11:C13) -> 0 | D10: 0.00
A11: 一般公共预算拨款收入 | B11: 0 | C11: 0 | D11: 0.00
A12: 政府性基金预算拨款收入 | B12: 0 | C12: 0 | D12: 0.00
A13: 国有资本经营预算拨款收入 | B13: 0 | C13: 0 | D13: 0.00
E14: 本年支出合计 | F14: =SUM(F6:F10) -> 277073 | G14: =SUM(G6:G10) -> 310363 | H14: =IF(AND(G14<>0,TYPE(G14)=1),(F14-G14)/G14*100,0) -> -10.73
E15: 七、结转下年 | F15: 0 | G15: 0 | H15: =IF(AND(G15<>0,TYPE(G15)=1),(F15-G15)/G15*100,0) -> 0.00
A20: 收入总计 | B20: =SUM(B6,B10) -> 277073 | C20: =SUM(C6,C10) -> 310363 | D20: =IF(AND(C20<>0,TYPE(C20)=1),(B20-C20)/C20*100,0) -> -10.73 | E20: 支出总计 | F20: =SUM(F14:F15) -> 277073 | G20: =SUM(G14:G15) -> 310363 | H20: =IF(AND(G20<>0,TYPE(G20)=1),(F20-G20)/G20*100,0) -> -10.73

Sheet 5
A1: 表5
A2: 财政拨款支出预算表
A3: 市质量技术监督局 | K3: 单位：百元
A4: 项 目 | F4: 总计 | G4: 当年财政拨款安排 | K4: 上年结转安排
A5: 科目编码 | D5: 单位代码 | E5: 单位名称（科目） | G5: 合计 | H5: 一般公共预算拨款
A6: 类 | B6: 款 | C6: 项 | H6: 小计 | I6: 基本支出 | J6: 项目支出
E7: 合计 | F7: 277073 | G7: 277073 | H7: 277073 | I7: 228475 | J7: 48598 | K7: 0
E8: 市质量技术监督局 | F8: 277073 | G8: 277073 | H8: 277073 | I8: 228475 | J8: 48598 | K8: 0
E9: 市质量技术监督局 | F9: 89216 | G9: 89216 | H9: 89216 | I9: 77602 | J9: 11614 | K9: 0
A10: 201 | B10: 38 | C10: 01 | D10: 358301 | E10: 行政运行 | F10: 59576 | G10: 59576 | H10: 59576 | I10: 59576 | J10: 0 | K10: 0
A11: 201 | B11: 38 | C11: 02 | D11: 358301 | E11: 一般行政管理事务 | F11: 8514 | G11: 8514 | H11: 8514 | I11: 0 | J11: 8514 | K11: 0
A12: 201 | B12: 38 | C12: 03 | D12: 358301 | E12: 机关服务 | F12: 3100 | G12: 3100 | H12: 3100 | I12: 0 | J12: 3100 | K12: 0
A13: 208 | B13: 05 | C13: 01 | D13: 358301 | E13: 归口管理的行政单位离退休 | F13: 143 | G13: 143 | H13: 143 | I13: 143 | J13: 0 | K13: 0
A14: 208 | B14: 05 | C14: 05 | D14: 358301 | E14: 机关事业单位基本养老保险缴费支出 | F14: 7939 | G14: 7939 | H14: 7939 | I14: 7939 | J14: 0 | K14: 0
A15: 210 | B15: 11 | C15: 01 | D15: 358301 | E15: 行政单位医疗 | F15: 3580 | G15: 3580 | H15: 3580 | I15: 3580 | J15: 0 | K15: 0
A16: 221 | B16: 02 | C16: 01 | D16: 358301 | E16: 住房公积金 | F16: 6364 | G16: 6364 | H16: 6364 | I16: 6364 | J16: 0 | K16: 0
E17: 市产品质量监督检验所 | F17: 34024 | G17: 34024 | H17: 34024 | I17: 27484 | J17: 6540 | K17: 0
A18: 201 | B18: 38 | C18: 09 | D18: 358601 | E18: 市场监督管理技术支持 | F18: 6400 | G18: 6400 | H18: 6400 | I18: 0 | J18: 6400 | K18: 0
A19: 201 | B19: 38 | C19: 50 | D19: 358601 | E19: 事业运行 | F19: 19814 | G19: 19814 | H19: 19814 | I19: 19814 | J19: 0 | K19: 0
A20: 201 | B20: 38 | C20: 99 | D20: 358601 | E20: 其他市场监督管理事务 | F20: 140 | G20: 140 | H20: 140 | I20: 0 | J20: 140 | K20: 0
A21: 208 | B21: 05 | C21: 02 | D21: 358601 | E21: 事业单位离退休 | F21: 17 | G21: 17 | H21: 17 | I21: 17 | J21: 0 | K21: 0
A22: 208 | B22: 05 | C22: 05 | D22: 358601 | E22: 机关事业单位基本养老保险缴费支出 | F22: 2944 | G22: 2944 | H22: 2944 | I22: 2944 | J22: 0 | K22: 0
A23: 208 | B23: 05 | C23: 06 | D23: 358601 | E23: 机关事业单位职业年金缴费支出 | F23: 1178 | G23: 1178 | H23: 1178 | I23: 1178 | J23: 0 | K23: 0
A24: 210 | B24: 11 | C24: 02 | D24: 358601 | E24: 事业单位医疗 | F24: 1116 | G24: 1116 | H24: 1116 | I24: 1116 | J24: 0 | K24: 0
A25: 221 | B25: 02 | C25: 01 | D25: 358601 | E25: 住房公积金 | F25: 2415 | G25: 2415 | H25: 2415 | I25: 2415 | J25: 0 | K25: 0
E26: 市计量检定测试所 | F26: 37423 | G26: 37423 | H26: 37423 | I26: 37051 | J26: 372 | K26: 0
A27: 201 | B27: 38 | C27: 50 | D27: 358602 | E27: 事业运行 | F27: 26759 | G27: 26759 | H27: 26759 | I27: 26759 | J27: 0 | K27: 0
A28: 201 | B28: 38 | C28: 99 | D28: 358602 | E28: 其他市场监督管理事务 | F28: 372 | G28: 372 | H28: 372 | I28: 0 | J28: 372 | K28: 0
A29: 208 | B29: 05 | C29: 02 | D29: 358602 | E29: 事业单位离退休 | F29: 26 | G29: 26 | H29: 26 | I29: 26 | J29: 0 | K29: 0
A30: 208 | B30: 05 | C30: 05 | D30: 358602 | E30: 机关事业单位基本养老保险缴费支出 | F30: 3950 | G30: 3950 | H30: 3950 | I30: 3950 | J30: 0 | K30: 0
A31: 208 | B31: 05 | C31: 06 | D31: 358602 | E31: 机关事业单位职业年金缴费支出 | F31: 1580 | G31: 1580 | H31: 1580 | I31: 1580 | J31: 0 | K31: 0
A32: 210 | B32: 11 | C32: 02 | D32: 358602 | E32: 事业单位医疗 | F32: 1502 | G32: 1502 | H32: 1502 | I32: 1502 | J32: 0 | K32: 0
A33: 221 | B33: 02 | C33: 01 | D33: 358602 | E33: 住房公积金 | F33: 3234 | G33: 3234 | H33: 3234 | I33: 3234 | J33: 0 | K33: 0
E34: 市特种设备监督检验所 | F34: 49462 | G34: 49462 | H34: 49462 | I34: 20322 | J34: 29140 | K34: 0
A35: 201 | B35: 38 | C35: 09 | D35: 358603 | E35: 市场监督管理技术支持 | F35: 29000 | G35: 29000 | H35: 29000 | I35: 0 | J35: 29000 | K35: 0
A36: 201 | B36: 38 | C36: 50 | D36: 358603 | E36: 事业运行 | F36: 14663 | G36: 14663 | H36: 14663 | I36: 14663 | J36: 0 | K36: 0
A37: 201 | B37: 38 | C37: 99 | D37: 358603 | E37: 其他市场监督管理事务 | F37: 140 | G37: 140 | H37: 140 | I37: 0 | J37: 140 | K37: 0
A38: 208 | B38: 05 | C38: 02 | D38: 358603 | E38: 事业单位离退休 | F38: 39 | G38: 39 | H38: 39 | I38: 39 | J38: 0 | K38: 0
A39: 208 | B39: 05 | C39: 05 | D39: 358603 | E39: 机关事业单位基本养老保险缴费支出 | F39: 2161 | G39: 2161 | H39: 2161 | I39: 2161 | J39: 0 | K39: 0
A40: 208 | B40: 05 | C40: 06 | D40: 358603 | E40: 机关事业单位职业年金缴费支出 | F40: 865 | G40: 865 | H40: 865 | I40: 865 | J40: 0 | K40: 0
A41: 210 | B41: 11 | C41: 02 | D41: 358603 | E41: 事业单位医疗 | F41: 811 | G41: 811 | H41: 811 | I41: 811 | J41: 0 | K41: 0
A42: 221 | B42: 02 | C42: 01 | D42: 358603 | E42: 住房公积金 | F42: 1783 | G42: 1783 | H42: 1783 | I42: 1783 | J42: 0 | K42: 0
E43: 市质量技术监督局利州分局 | F43: 30106 | G43: 30106 | H43: 30106 | I43: 29606 | J43: 500 | K43: 0
A44: 201 | B44: 38 | C44: 01 | D44: 358604 | E44: 行政运行 | F44: 18047 | G44: 18047 | H44: 18047 | I44: 18047 | J44: 0 | K44: 0
A45: 201 | B45: 38 | C45: 02 | D45: 358604 | E45: 一般行政管理事务 | F45: 500 | G45: 500 | H45: 500 | I45: 0 | J45: 500 | K45: 0
A46: 201 | B46: 38 | C46: 50 | D46: 358604 | E46: 事业运行 | F46: 4746 | G46: 4746 | H46: 4746 | I46: 4746 | J46: 0 | K46: 0
A47: 208 | B47: 05 | C47: 01 | D47: 358604 | E47: 归口管理的行政单位离退休 | F47: 31 | G47: 31 | H47: 31 | I47: 31 | J47: 0 | K47: 0
A48: 208 | B48: 05 | C48: 05 | D48: 358604 | E48: 机关事业单位基本养老保险缴费支出 | F48: 3081 | G48: 3081 | H48: 3081 | I48: 3081 | J48: 0 | K48: 0
A49: 210 | B49: 11 | C49: 01 | D49: 358604 | E49: 行政单位医疗 | F49: 1156 | G49: 1156 | H49: 1156 | I49: 1156 | J49: 0 | K49: 0
A50: 221 | B50: 02 | C50: 01 | D50: 358604 | E50: 住房公积金 | F50: 2545 | G50: 2545 | H50: 2545 | I50: 2545 | J50: 0 | K50: 0
E51: 市质量技术监督局昭化分局 | F51: 20132 | G51: 20132 | H51: 20132 | I51: 19932 | J51: 200 | K51: 0
A52: 201 | B52: 38 | C52: 01 | D52: 358605 | E52: 行政运行 | F52: 13567 | G52: 13567 | H52: 13567 | I52: 13567 | J52: 0 | K52: 0
A53: 201 | B53: 38 | C53: 02 | D53: 358605 | E53: 一般行政管理事务 | F53: 200 | G53: 200 | H53: 200 | I53: 0 | J53: 200 | K53: 0
A54: 201 | B54: 38 | C54: 50 | D54: 358605 | E54: 事业运行 | F54: 1771 | G54: 1771 | H54: 1771 | I54: 1771 | J54: 0 | K54: 0
A55: 208 | B55: 05 | C55: 01 | D55: 358605 | E55: 归口管理的行政单位离退休 | F55: 3 | G55: 3 | H55: 3 | I55: 3 | J55: 0 | K55: 0
A56: 208 | B56: 05 | C56: 05 | D56: 358605 | E56: 机关事业单位基本养老保险缴费支出 | F56: 2052 | G56: 2052 | H56: 2052 | I56: 2052 | J56: 0 | K56: 0
A57: 210 | B57: 11 | C57: 01 | D57: 358605 | E57: 行政单位医疗 | F57: 831 | G57: 831 | H57: 831 | I57: 831 | J57: 0 | K57: 0
A58: 221 | B58: 02 | C58: 01 | D58: 358605 | E58: 住房公积金 | F58: 1708 | G58: 1708 | H58: 1708 | I58: 1708 | J58: 0 | K58: 0
E59: 市质量技术监督局朝天分局 | F59: 16710 | G59: 16710 | H59: 16710 | I59: 16478 | J59: 232 | K59: 0
A60: 201 | B60: 38 | C60: 01 | D60: 358606 | E60: 行政运行 | F60: 12405 | G60: 12405 | H60: 12405 | I60: 12405 | J60: 0 | K60: 0
A61: 201 | B61: 38 | C61: 02 | D61: 358606 | E61: 一般行政管理事务 | F61: 232 | G61: 232 | H61: 232 | I61: 0 | J61: 232 | K61: 0
A62: 201 | B62: 38 | C62: 50 | D62: 358606 | E62: 事业运行 | F62: 400 | G62: 400 | H62: 400 | I62: 400 | J62: 0 | K62: 0
A63: 208 | B63: 05 | C63: 01 | D63: 358606 | E63: 归口管理的行政单位离退休 | F63: 48 | G63: 48 | H63: 48 | I63: 48 | J63: 0 | K63: 0
A64: 208 | B64: 05 | C64: 05 | D64: 358606 | E64: 机关事业单位基本养老保险缴费支出 | F64: 1640 | G64: 1640 | H64: 1640 | I64: 1640 | J64: 0 | K64: 0
A65: 210 | B65: 11 | C65: 01 | D65: 358606 | E65: 行政单位医疗 | F65: 615 | G65: 615 | H65: 615 | I65: 615 | J65: 0 | K65: 0
A66: 221 | B66: 02 | C66: 01 | D66: 358606 | E66: 住房公积金 | F66: 1370 | G66: 1370 | H66: 1370 | I66: 1370 | J66: 0 | K66: 0

Sheet 6
A1: 表6
A2: 人员支出预算表
A3: 市质量技术监督局 | Q3: 单位：百元
A4: 项 目 | F4: 合计 | G4: 基本工资 | H4: 津贴补贴 | I4: 奖金 | J4: 伙食补助费 | K4: 绩效工资 | L4: 机关事业单位基本养老保险缴费 | M4: 职业年金缴费 | N4: 职业基本医疗保险缴费 | O4: 其他社会保障缴费 | P4: 住房公积金 | Q4: 其他工资福利
A5: 科目编码 | D5: 单位代码 | E5: 单位名称(科目)
A6: 类 | B6: 款 | C6: 项
E7: 合计 | F7: 177798 | G7: 66087 | H7: 28453 | I7: 3286 | J7: 0 | K7: 23033 | L7: 23767 | M7: 3623 | N7: 8916 | O7: 1214 | P7: 19419 | Q7: 0
E8: 市质量技术监督局 | F8: 177798 | G8: 66087 | H8: 28453 | I8: 3286 | J8: 0 | K8: 23033 | L8: 23767 | M8: 3623 | N8: 8916 | O8: 1214 | P8: 19419 | Q8: 0
E9: 市质量技术监督局 | F9: 57632 | G9: 22750 | H9: 15374 | I9: 2012 | J9: 0 | K9: 0 | L9: 7939 | M9: 0 | N9: 2978 | O9: 215 | P9: 6364 | Q9: 0
A10: 201 | B10: 38 | C10: 01 | D10: 358301 | E10: 行政运行 | F10: 40136 | G10: 22750 | H10: 15374 | I10: 2012 | J10: 0 | K10: 0 | L10: 0 | M10: 0 | N10: 0 | O10: 0 | P10: 0 | Q10: 0
A11: 208 | B11: 05 | C11: 05 | D11: 358301 | E11: 机关事业单位基本养老保险缴费支出 | F11: 7939 | G11: 0 | H11: 0 | I11: 0 | J11: 0 | K11: 0 | L11: 7939 | M11: 0 | N11: 0 | O11: 0 | P11: 0 | Q11: 0
A12: 210 | B12: 11 | C12: 01 | D12: 358301 | E12: 行政单位医疗 | F12: 3193 | G12: 0 | H12: 0 | I12: 0 | J12: 0 | K12: 0 | L12: 0 | M12: 0 | N12: 2978 | O12: 215 | P12: 0 | Q12: 0
A13: 221 | B13: 02 | C13: 01 | D13: 358301 | E13: 住房公积金 | F13: 6364 | G13: 0 | H13: 0 | I13: 0 | J13: 0 | K13: 0 | L13: 0 | M13: 0 | N13: 0 | O13: 0 | P13: 6364 | Q13: 0
E14: 市产品质量监督检验所 | F14: 22855 | G14: 8277 | H14: 348 | I14: 0 | J14: 0 | K14: 6352 | L14: 2944 | M14: 1178 | N14: 1104 | O14: 237 | P14: 2415 | Q14: 0
A15: 201 | B15: 38 | C15: 50 | D15: 358601 | E15: 事业运行 | F15: 15214 | G15: 8277 | H15: 348 | I15: 0 | J15: 0 | K15: 6352 | L15: 0 | M15: 0 | N15: 0 | O15: 237 | P15: 0 | Q15: 0
A16: 208 | B16: 05 | C16: 05 | D16: 358601 | E16: 机关事业单位基本养老保险缴费支出 | F16: 2944 | G16: 0 | H16: 0 | I16: 0 | J16: 0 | K16: 0 | L16: 2944 | M16: 0 | N16: 0 | O16: 0 | P16: 0 | Q16: 0
A17: 208 | B17: 05 | C17: 06 | D17: 358601 | E17: 机关事业单位职业年金缴费支出 | F17: 1178 | G17: 0 | H17: 0 | I17: 0 | J17: 0 | K17: 0 | L17: 0 | M17: 1178 | N17: 0 | O17: 0 | P17: 0 | Q17: 0
A18: 210 | B18: 11 | C18: 02 | D18: 358601 | E18: 事业单位医疗 | F18: 1104 | G18: 0 | H18: 0 | I18: 0 | J18: 0 | K18: 0 | L18: 0 | M18: 0 | N18: 1104 | O18: 0 | P18: 0 | Q18: 0
A19: 221 | B19: 02 | C19: 01 | D19: 358601 | E19: 住房公积金 | F19: 2415 | G19: 0 | H19: 0 | I19: 0 | J19: 0 | K19: 0 | L19: 0 | M19: 0 | N19: 0 | O19: 0 | P19: 2415 | Q19: 0
E20: 市计量检定测试所 | F20: 30669 | G20: 11115 | H20: 480 | I20: 0 | J20: 0 | K20: 8511 | L20: 3950 | M20: 1580 | N20: 1482 | O20: 317 | P20: 3234 | Q20: 0
A21: 201 | B21: 38 | C21: 50 | D21: 358602 | E21: 事业运行 | F21: 20423 | G21: 11115 | H21: 480 | I21: 0 | J21: 0 | K21: 8511 | L21: 0 | M21: 0 | N21: 0 | O21: 317 | P21: 0 | Q21: 0
A22: 208 | B22: 05 | C22: 05 | D22: 358602 | E22: 机关事业单位基本养老保险缴费支出 | F22: 3950 | G22: 0 | H22: 0 | I22: 0 | J22: 0 | K22: 0 | L22: 3950 | M22: 0 | N22: 0 | O22: 0 | P22: 0 | Q22: 0
A23: 208 | B23: 05 | C23: 06 | D23: 358602 | E23: 机关事业单位职业年金缴费支出 | F23: 1580 | G23: 0 | H23: 0 | I23: 0 | J23: 0 | K23: 0 | L23: 0 | M23: 1580 | N23: 0 | O23: 0 | P23: 0 | Q23: 0
A24: 210 | B24: 11 | C24: 02 | D24: 358602 | E24: 事业单位医疗 | F24: 1482 | G24: 0 | H24: 0 | I24: 0 | J24: 0 | K24: 0 | L24: 0 | M24: 0 | N24: 1482 | O24: 0 | P24: 0 | Q24: 0
A25: 221 | B25: 02 | C25: 01 | D25: 358602 | E25: 住房公积金 | F25: 3234 | G25: 0 | H25: 0 | I25: 0 | J25: 0 | K25: 0 | L25: 0 | M25: 0 | N25: 0 | O25: 0 | P25: 3234 | Q25: 0
E26: 市特种设备监督检验所 | F26: 16792 | G26: 5985 | H26: 263 | I26: 0 | J26: 0 | K26: 4749 | L26: 2161 | M26: 865 | N26: 811 | O26: 175 | P26: 1783 | Q26: 0
A27: 201 | B27: 38 | C27: 50 | D27: 358603 | E27: 事业运行 | F27: 11172 | G27: 5985 | H27: 263 | I27: 0 | J27: 0 | K27: 4749 | L27: 0 | M27: 0 | N27: 0 | O27: 175 | P27: 0 | Q27: 0
A28: 208 | B28: 05 | C28: 05 | D28: 358603 | E28: 机关事业单位基本养老保险缴费支出 | F28: 2161 | G28: 0 | H28: 0 | I28: 0 | J28: 0 | K28: 0 | L28: 2161 | M28: 0 | N28: 0 | O28: 0 | P28: 0 | Q28: 0
A29: 208 | B29: 05 | C29: 06 | D29: 358603 | E29: 机关事业单位职业年金缴费支出 | F29: 865 | G29: 0 | H29: 0 | I29: 0 | J29: 0 | K29: 0 | L29: 0 | M29: 865 | N29: 0 | O29: 0 | P29: 0 | Q29: 0
A30: 210 | B30: 11 | C30: 02 | D30: 358603 | E30: 事业单位医疗 | F30: 811 | G30: 0 | H30: 0 | I30: 0 | J30: 0 | K30: 0 | L30: 0 | M30: 0 | N30: 811 | O30: 0 | P30: 0 | Q30: 0
A31: 221 | B31: 02 | C31: 01 | D31: 358603 | E31: 住房公积金 | F31: 1783 | G31: 0 | H31: 0 | I31: 0 | J31: 0 | K31: 0 | L31: 0 | M31: 0 | N31: 0 | O31: 0 | P31: 1783 | Q31: 0
E32: 市质量技术监督局利州分局 | F32: 22508 | G32: 8260 | H32: 4459 | I32: 500 | J32: 0 | K32: 2366 | L32: 3081 | M32: 0 | N32: 1156 | O32: 141 | P32: 2545 | Q32: 0
A33: 201 | B33: 38 | C33: 01 | D33: 358604 | E33: 行政运行 | F33: 13219 | G33: 8260 | H33: 4459 | I33: 500 | J33: 0 | K33: 0 | L33: 0 | M33: 0 | N33: 0 | O33: 0 | P33: 0 | Q33: 0
A34: 201 | B34: 38 | C34: 50 | D34: 358604 | E34: 事业运行 | F34: 2507 | G34: 0 | H34: 0 | I34: 0 | J34: 0 | K34: 2366 | L34: 0 | M34: 0 | N34: 0 | O34: 141 | P34: 0 | Q34: 0
A35: 208 | B35: 05 | C35: 05 | D35: 358604 | E35: 机关事业单位基本养老保险缴费支出 | F35: 3081 | G35: 0 | H35: 0 | I35: 0 | J35: 0 | K35: 0 | L35: 3081 | M35: 0 | N35: 0 | O35: 0 | P35: 0 | Q35: 0
A36: 210 | B36: 11 | C36: 01 | D36: 358604 | E36: 行政单位医疗 | F36: 1156 | G36: 0 | H36: 0 | I36: 0 | J36: 0 | K36: 0 | L36: 0 | M36: 0 | N36: 1156 | O36: 0 | P36: 0 | Q36: 0
A37: 221 | B37: 02 | C37: 01 | D37: 358604 | E37: 住房公积金 | F37: 2545 | G37: 0 | H37: 0 | I37: 0 | J37: 0 | K37: 0 | L37: 0 | M37: 0 | N37: 0 | O37: 0 | P37: 2545 | Q37: 0
E38: 市质量技术监督局昭化分局 | F38: 15004 | G38: 5402 | H38: 3813 | I38: 410 | J38: 0 | K38: 771 | L38: 2052 | M38: 0 | N38: 770 | O38: 78 | P38: 1708 | Q38: 0
A39: 201 | B39: 38 | C39: 01 | D39: 358605 | E39: 行政运行 | F39: 9642 | G39: 5402 | H39: 3813 | I39: 410 | J39: 0 | K39: 0 | L39: 0 | M39: 0 | N39: 0 | O39: 17 | P39: 0 | Q39: 0
A40: 201 | B40: 38 | C40: 50 | D40: 358605 | E40: 事业运行 | F40: 771 | G40: 0 | H40: 0 | I40: 0 | J40: 0 | K40: 771 | L40: 0 | M40: 0 | N40: 0 | O40: 0 | P40: 0 | Q40: 0
A41: 208 | B41: 05 | C41: 05 | D41: 358605 | E41: 机关事业单位基本养老保险缴费支出 | F41: 2052 | G41: 0 | H41: 0 | I41: 0 | J41: 0 | K41: 0 | L41: 2052 | M41: 0 | N41: 0 | O41: 0 | P41: 0 | Q41: 0
A42: 210 | B42: 11 | C42: 01 | D42: 358605 | E42: 行政单位医疗 | F42: 831 | G42: 0 | H42: 0 | I42: 0 | J42: 0 | K42: 0 | L42: 0 | M42: 0 | N42: 770 | O42: 61 | P42: 0 | Q42: 0
A43: 221 | B43: 02 | C43: 01 | D43: 358605 | E43: 住房公积金 | F43: 1708 | G43: 0 | H43: 0 | I43: 0 | J43: 0 | K43: 0 | L43: 0 | M43: 0 | N43: 0 | O43: 0 | P43: 1708 | Q43: 0
E44: 市质量技术监督局朝天分局 | F44: 12338 | G44: 4298 | H44: 3716 | I44: 364 | J44: 0 | K44: 284 | L44: 1640 | M44: 0 | N44: 615 | O44: 51 | P44: 1370 | Q44: 0
A45: 201 | B45: 38 | C45: 01 | D45: 358606 | E45: 行政运行 | F45: 8713 | G45: 4298 | H45: 3716 | I45: 364 | J45: 0 | K45: 284 | L45: 0 | M45: 0 | N45: 0 | O45: 51 | P45: 0 | Q45: 0
A46: 208 | B46: 05 | C46: 05 | D46: 358606 | E46: 机关事业单位基本养老保险缴费支出 | F46: 1640 | G46: 0 | H46: 0 | I46: 0 | J46: 0 | K46: 0 | L46: 1640 | M46: 0 | N46: 0 | O46: 0 | P46: 0 | Q46: 0
A47: 210 | B47: 11 | C47: 01 | D47: 358606 | E47: 行政单位医疗 | F47: 615 | G47: 0 | H47: 0 | I47: 0 | J47: 0 | K47: 0 | L47: 0 | M47: 0 | N47: 615 | O47: 0 | P47: 0 | Q47: 0
A48: 221 | B48: 02 | C48: 01 | D48: 358606 | E48: 住房公积金 | F48: 1370 | G48: 0 | H48: 0 | I48: 0 | J48: 0 | K48: 0 | L48: 0 | M48: 0 | N48: 0 | O48: 0 | P48: 1370 | Q48: 0

Sheet 7
A1: 表7
A2: 日常公用支出预算表
A3: 市质量技术监督局 | AF3: 单位：百元
A4: 项 目 | F4: 合计 | G4: 办公费 | H4: 印刷费 | I4: 咨询费 | J4: 手续费 | K4: 水费 | L4: 电费 | M4: 邮电费 | N4: 取暖费 | O4: 物业管理费 | P4: 差旅费 | Q4: 因公出国（境）费用 | R4: 维修(护)费 | S4: 租赁费 | T4: 会议费 | U4: 培训费 | V4: 公务接待费 | W4: 专用材料费 | X4: 被装购置费 | Y4: 专用燃料费 | Z4: 劳务费 | AA4: 委托业务费 | AB4: 工会经费 | AC4: 福利费 | AD4: 公务用车运行维护费 | AE4: 其他交通费用 | AF4: 其他商品和服务支出
A5: 科目编码 | D5: 单位代码 | E5: 单位名称（科目）
A6: 类 | B6: 款 | C6: 项
E7: 合计 | F7: 50134 | G7: 5490 | H7: 2100 | I7: 0 | J7: 137 | K7: 774 | L7: 2060 | M7: 1670 | N7: 0 | O7: 1700 | P7: 5299 | Q7: 0 | R7: 900 | S7: 10 | T7: 790 | U7: 2170 | V7: 1181 | W7: 0 | X7: 0 | Y7: 0 | Z7: 1540 | AA7: 250 | AB7: 1192 | AC7: 2010 | AD7: 3310 | AE7: 9524 | AF7: 8027
E8: 市质量技术监督局 | F8: 50134 | G8: 5490 | H8: 2100 | I8: 0 | J8: 137 | K8: 774 | L8: 2060 | M8: 1670 | N8: 0 | O8: 1700 | P8: 5299 | Q8: 0 | R8: 900 | S8: 10 | T8: 790 | U8: 2170 | V8: 1181 | W8: 0 | X8: 0 | Y8: 0 | Z8: 1540 | AA8: 250 | AB8: 1192 | AC8: 2010 | AD8: 3310 | AE8: 9524 | AF8: 8027
E9: 市质量技术监督局 | F9: 19583 | G9: 1500 | H9: 300 | I9: 0 | J9: 15 | K9: 500 | L9: 1200 | M9: 650 | N9: 0 | O9: 700 | P9: 999 | Q9: 0 | R9: 300 | S9: 0 | T9: 300 | U9: 300 | V9: 450 | W9: 0 | X9: 0 | Y9: 0 | Z9: 200 | AA9: 0 | AB9: 397 | AC9: 690 | AD9: 700 | AE9: 5289 | AF9: 5093
A10: 201 | B10: 38 | C10: 01 | D10: 358301 | E10: 行政运行 | F10: 19440 | G10: 1500 | H10: 300 | I10: 0 | J10: 15 | K10: 500 | L10: 1200 | M10: 650 | N10: 0 | O10: 700 | P10: 999 | Q10: 0 | R10: 300 | S10: 0 | T10: 300 | U10: 300 | V10: 450 | W10: 0 | X10: 0 | Y10: 0 | Z10: 200 | AA10: 0 | AB10: 397 | AC10: 690 | AD10: 700 | AE10: 5289 | AF10: 4950
A11: 208 | B11: 05 | C11: 01 | D11: 358301 | E11: 归口管理的行政单位离退休 | F11: 143 | G11: 0 | H11: 0 | I11: 0 | J11: 0 | K11: 0 | L11: 0 | M11: 0 | N11: 0 | O11: 0 | P11: 0 | Q11: 0 | R11: 0 | S11: 0 | T11: 0 | U11: 0 | V11: 0 | W11: 0 | X11: 0 | Y11: 0 | Z11: 0 | AA11: 0 | AB11: 0 | AC11: 0 | AD11: 0 | AE11: 0 | AF11: 143
E12: 市产品质量监督检验所 | F12: 4617 | G12: 500 | H12: 200 | I12: 0 | J12: 20 | K12: 30 | L12: 30 | M12: 50 | N12: 0 | O12: 50 | P12: 800 | Q12: 0 | R12: 100 | S12: 0 | T12: 0 | U12: 400 | V12: 117 | W12: 0 | X12: 0 | Y12: 0 | Z12: 200 | AA12: 100 | AB12: 148 | AC12: 252 | AD12: 700 | AE12: 500 | AF12: 420
A13: 201 | B13: 38 | C13: 50 | D13: 358601 | E13: 事业运行 | F13: 4600 | G13: 500 | H13: 200 | I13: 0 | J13: 20 | K13: 30 | L13: 30 | M13: 50 | N13: 0 | O13: 50 | P13: 800 | Q13: 0 | R13: 100 | S13: 0 | T13: 0 | U13: 400 | V13: 117 | W13: 0 | X13: 0 | Y13: 0 | Z13: 200 | AA13: 100 | AB13: 148 | AC13: 252 | AD13: 700 | AE13: 500 | AF13: 403
A14: 208 | B14: 05 | C14: 02 | D14: 358601 | E14: 事业单位离退休 | F14: 17 | G14: 0 | H14: 0 | I14: 0 | J14: 0 | K14: 0 | L14: 0 | M14: 0 | N14: 0 | O14: 0 | P14: 0 | Q14: 0 | R14: 0 | S14: 0 | T14: 0 | U14: 0 | V14: 0 | W14: 0 | X14: 0 | Y14: 0 | Z14: 0 | AA14: 0 | AB14: 0 | AC14: 0 | AD14: 0 | AE14: 0 | AF14: 17
E15: 市计量检定测试所 | F15: 6362 | G15: 1600 | H15: 300 | I15: 0 | J15: 50 | K15: 100 | L15: 300 | M15: 400 | N15: 0 | O15: 0 | P15: 1000 | Q15: 0 | R15: 300 | S15: 0 | T15: 0 | U15: 400 | V15: 144 | W15: 0 | X15: 0 | Y15: 0 | Z15: 350 | AA15: 0 | AB15: 198 | AC15: 338 | AD15: 750 | AE15: 0 | AF15: 132
A16: 201 | B16: 38 | C16: 50 | D16: 358602 | E16: 事业运行 | F16: 6336 | G16: 1600 | H16: 300 | I16: 0 | J16: 50 | K16: 100 | L16: 300 | M16: 400 | N16: 0 | O16: 0 | P16: 1000 | Q16: 0 | R16: 300 | S16: 0 | T16: 0 | U16: 400 | V16: 144 | W16: 0 | X16: 0 | Y16: 0 | Z16: 350 | AA16: 0 | AB16: 198 | AC16: 338 | AD16: 750 | AE16: 0 | AF16: 106
A17: 208 | B17: 05 | C17: 02 | D17: 358602 | E17: 事业单位离退休 | F17: 26 | G17: 0 | H17: 0 | I17: 0 | J17: 0 | K17: 0 | L17: 0 | M17: 0 | N17: 0 | O17: 0 | P17: 0 | Q17: 0 | R17: 0 | S17: 0 | T17: 0 | U17: 0 | V17: 0 | W17: 0 | X17: 0 | Y17: 0 | Z17: 0 | AA17: 0 | AB17: 0 | AC17: 0 | AD17: 0 | AE17: 0 | AF17: 26
E18: 市特种设备监督检验所 | F18: 3505 | G18: 430 | H18: 100 | I18: 0 | J18: 50 | K18: 20 | L18: 150 | M18: 200 | N18: 0 | O18: 500 | P18: 350 | Q18: 0 | R18: 0 | S18: 0 | T18: 0 | U18: 500 | V18: 60 | W18: 0 | X18: 0 | Y18: 0 | Z18: 300 | AA18: 0 | AB18: 109 | AC18: 182 | AD18: 420 | AE18: 0 | AF18: 134
A19: 201 | B19: 38 | C19: 50 | D19: 358603 | E19: 事业运行 | F19: 3491 | G19: 430 | H19: 100 | I19: 0 | J19: 50 | K19: 20 | L19: 150 | M19: 200 | N19: 0 | O19: 500 | P19: 350 | Q19: 0 | R19: 0 | S19: 0 | T19: 0 | U19: 500 | V19: 60 | W19: 0 | X19: 0 | Y19: 0 | Z19: 300 | AA19: 0 | AB19: 109 | AC19: 182 | AD19: 420 | AE19: 0 | AF19: 120
A20: 208 | B20: 05 | C20: 02 | D20: 358603 | E20: 事业单位离退休 | F20: 14 | G20: 0 | H20: 0 | I20: 0 | J20: 0 | K20: 0 | L20: 0 | M20: 0 | N20: 0 | O20: 0 | P20: 0 | Q20: 0 | R20: 0 | S20: 0 | T20: 0 | U20: 0 | V20: 0 | W20: 0 | X20: 0 | Y20: 0 | Z20: 0 | AA20: 0 | AB20: 0 | AC20: 0 | AD20: 0 | AE20: 0 | AF20: 14
E21: 市质量技术监督局利州分局 | F21: 7059 | G21: 800 | H21: 700 | I21: 0 | J21: 0 | K21: 100 | L21: 100 | M21: 0 | N21: 0 | O21: 100 | P21: 1100 | Q21: 0 | R21: 100 | S21: 0 | T21: 400 | U21: 210 | V21: 150 | W21: 0 | X21: 0 | Y21: 0 | Z21: 200 | AA21: 0 | AB21: 155 | AC21: 252 | AD21: 540 | AE21: 1423 | AF21: 729
A22: 201 | B22: 38 | C22: 01 | D22: 358604 | E22: 行政运行 | F22: 4828 | G22: 400 | H22: 400 | I22: 0 | J22: 0 | K22: 100 | L22: 100 | M22: 0 | N22: 0 | O22: 100 | P22: 500 | Q22: 0 | R22: 100 | S22: 0 | T22: 200 | U22: 100 | V22: 100 | W22: 0 | X22: 0 | Y22: 0 | Z22: 200 | AA22: 0 | AB22: 155 | AC22: 252 | AD22: 400 | AE22: 1223 | AF22: 498
A23: 201 | B23: 38 | C23: 50 | D23: 358604 | E23: 事业运行 | F23: 2200 | G23: 400 | H23: 300 | I23: 0 | J23: 0 | K23: 0 | L23: 0 | M23: 0 | N23: 0 | O23: 0 | P23: 600 | Q23: 0 | R23: 0 | S23: 0 | T23: 200 | U23: 110 | V23: 50 | W23: 0 | X23: 0 | Y23: 0 | Z23: 0 | AA23: 0 | AB23: 0 | AC23: 0 | AD23: 140 | AE23: 200 | AF23: 200
A24: 208 | B24: 05 | C24: 01 | D24: 358604 | E24: 归口管理的行政单位离退休 | F24: 31 | G24: 0 | H24: 0 | I24: 0 | J24: 0 | K24: 0 | L24: 0 | M24: 0 | N24: 0 | O24: 0 | P24: 0 | Q24: 0 | R24: 0 | S24: 0 | T24: 0 | U24: 0 | V24: 0 | W24: 0 | X24: 0 | Y24: 0 | Z24: 0 | AA24: 0 | AB24: 0 | AC24: 0 | AD24: 0 | AE24: 0 | AF24: 31
E25: 市质量技术监督局昭化分局 | F25: 4907 | G25: 300 | H25: 300 | I25: 0 | J25: 2 | K25: 4 | L25: 200 | M25: 70 | N25: 0 | O25: 130 | P25: 550 | Q25: 0 | R25: 100 | S25: 10 | T25: 50 | U25: 320 | V25: 110 | W25: 0 | X25: 0 | Y25: 0 | Z25: 250 | AA25: 150 | AB25: 103 | AC25: 165 | AD25: 0 | AE25: 1424 | AF25: 669
A26: 201 | B26: 38 | C26: 01 | D26: 358605 | E26: 行政运行 | F26: 3904 | G26: 200 | H26: 150 | I26: 0 | J26: 2 | K26: 4 | L26: 150 | M26: 70 | N26: 0 | O26: 130 | P26: 400 | Q26: 0 | R26: 100 | S26: 10 | T26: 50 | U26: 200 | V26: 80 | W26: 0 | X26: 0 | Y26: 0 | Z26: 200 | AA26: 100 | AB26: 103 | AC26: 165 | AD26: 0 | AE26: 1274 | AF26: 516
A27: 201 | B27: 38 | C27: 50 | D27: 358605 | E27: 事业运行 | F27: 1000 | G27: 100 | H27: 150 | I27: 0 | J27: 0 | K27: 0 | L27: 50 | M27: 0 | N27: 0 | O27: 0 | P27: 150 | Q27: 0 | R27: 0 | S27: 0 | T27: 0 | U27: 120 | V27: 30 | W27: 0 | X27: 0 | Y27: 0 | Z27: 50 | AA27: 50 | AB27: 0 | AC27: 0 | AD27: 0 | AE27: 150 | AF27: 150
A28: 208 | B28: 05 | C28: 01 | D28: 358605 | E28: 归口管理的行政单位离退休 | F28: 3 | G28: 0 | H28: 0 | I28: 0 | J28: 0 | K28: 0 | L28: 0 | M28: 0 | N28: 0 | O28: 0 | P28: 0 | Q28: 0 | R28: 0 | S28: 0 | T28: 0 | U28: 0 | V28: 0 | W28: 0 | X28: 0 | Y28: 0 | Z28: 0 | AA28: 0 | AB28: 0 | AC28: 0 | AD28: 0 | AE28: 0 | AF28: 3
E29: 市质量技术监督局朝天分局 | F29: 4101 | G29: 360 | H29: 200 | I29: 0 | J29: 0 | K29: 20 | L29: 80 | M29: 300 | N29: 0 | O29: 220 | P29: 500 | Q29: 0 | R29: 0 | S29: 0 | T29: 40 | U29: 40 | V29: 150 | W29: 0 | X29: 0 | Y29: 0 | Z29: 40 | AA29: 0 | AB29: 82 | AC29: 131 | AD29: 200 | AE29: 888 | AF29: 850
A30: 201 | B30: 38 | C30: 01 | D30: 358606 | E30: 行政运行 | F30: 3692 | G30: 310 | H30: 100 | I30: 0 | J30: 0 | K30: 20 | L30: 80 | M30: 300 | N30: 0 | O30: 120 | P30: 500 | Q30: 0 | R30: 0 | S30: 0 | T30: 40 | U30: 40 | V30: 130 | W30: 0 | X30: 0 | Y30: 0 | Z30: 40 | AA30: 0 | AB30: 82 | AC30: 131 | AD30: 170 | AE30: 888 | AF30: 741
A31: 201 | B31: 38 | C31: 50 | D31: 358606 | E31: 事业运行 | F31: 400 | G31: 50 | H31: 100 | I31: 0 | J31: 0 | K31: 0 | L31: 0 | M31: 0 | N31: 0 | O31: 100 | P31: 0 | Q31: 0 | R31: 0 | S31: 0 | T31: 0 | U31: 0 | V31: 20 | W31: 0 | X31: 0 | Y31: 0 | Z31: 0 | AA31: 0 | AB31: 0 | AC31: 0 | AD31: 30 | AE31: 0 | AF31: 100
A32: 208 | B32: 05 | C32: 01 | D32: 358606 | E32: 归口管理的行政单位离退休 | F32: 9 | G32: 0 | H32: 0 | I32: 0 | J32: 0 | K32: 0 | L32: 0 | M32: 0 | N32: 0 | O32: 0 | P32: 0 | Q32: 0 | R32: 0 | S32: 0 | T32: 0 | U32: 0 | V32: 0 | W32: 0 | X32: 0 | Y32: 0 | Z32: 0 | AA32: 0 | AB32: 0 | AC32: 0 | AD32: 0 | AE32: 0 | AF32: 9

Sheet 8
A1: 表8
A2: 对个人和家庭的补助支出预算表
A3: 市质量技术监督局 | Q3: 单位：百元
A4: 项 目 | F4: 合计 | G4: 离休费 | H4: 退休费 | I4: 退职（役）费 | J4: 抚恤金 | K4: 生活补助 | L4: 救济费 | M4: 医疗费补助 | N4: 助学金 | O4: 奖励金 | P4: 个人农业生产补贴 | Q4: 其他对个人和家庭补助
A5: 科目编码 | D5: 单位代码 | E5: 单位名称（科目）
A6: 类 | B6: 款 | C6: 项
E7: 合计 | F7: 543 | G7: 0 | H7: 0 | I7: 0 | J7: 0 | K7: 0 | L7: 0 | M7: 543 | N7: 0 | O7: 0 | P7: 0 | Q7: 0
E8: 市质量技术监督局 | F8: 543 | G8: 0 | H8: 0 | I8: 0 | J8: 0 | K8: 0 | L8: 0 | M8: 543 | N8: 0 | O8: 0 | P8: 0 | Q8: 0
E9: 市质量技术监督局 | F9: 387 | G9: 0 | H9: 0 | I9: 0 | J9: 0 | K9: 0 | L9: 0 | M9: 387 | N9: 0 | O9: 0 | P9: 0 | Q9: 0
A10: 210 | B10: 11 | C10: 01 | D10: 358301 | E10: 行政单位医疗 | F10: 387 | G10: 0 | H10: 0 | I10: 0 | J10: 0 | K10: 0 | L10: 0 | M10: 387 | N10: 0 | O10: 0 | P10: 0 | Q10: 0
E11: 市产品质量监督检验所 | F11: 12 | G11: 0 | H11: 0 | I11: 0 | J11: 0 | K11: 0 | L11: 0 | M11: 12 | N11: 0 | O11: 0 | P11: 0 | Q11: 0
A12: 210 | B12: 11 | C12: 02 | D12: 358601 | E12: 事业单位医疗 | F12: 12 | G12: 0 | H12: 0 | I12: 0 | J12: 0 | K12: 0 | L12: 0 | M12: 12 | N12: 0 | O12: 0 | P12: 0 | Q12: 0
E13: 市计量检定测试所 | F13: 20 | G13: 0 | H13: 0 | I13: 0 | J13: 0 | K13: 0 | L13: 0 | M13: 20 | N13: 0 | O13: 0 | P13: 0 | Q13: 0
A14: 210 | B14: 11 | C14: 02 | D14: 358602 | E14: 事业单位医疗 | F14: 20 | G14: 0 | H14: 0 | I14: 0 | J14: 0 | K14: 0 | L14: 0 | M14: 20 | N14: 0 | O14: 0 | P14: 0 | Q14: 0
E15: 市特种设备监督检验所 | F15: 25 | G15: 0 | H15: 0 | I15: 0 | J15: 0 | K15: 0 | L15: 0 | M15: 25 | N15: 0 | O15: 0 | P15: 0 | Q15: 0
A16: 208 | B16: 05 | C16: 02 | D16: 358603 | E16: 事业单位离退休 | F16: 25 | G16: 0 | H16: 0 | I16: 0 | J16: 0 | K16: 0 | L16: 0 | M16: 25 | N16: 0 | O16: 0 | P16: 0 | Q16: 0
E17: 市质量技术监督局利州分局 | F17: 39 | G17: 0 | H17: 0 | I17: 0 | J17: 0 | K17: 0 | L17: 0 | M17: 39 | N17: 0 | O17: 0 | P17: 0 | Q17: 0
A18: 201 | B18: 38 | C18: 50 | D18: 358604 | E18: 事业运行 | F18: 39 | G18: 0 | H18: 0 | I18: 0 | J18: 0 | K18: 0 | L18: 0 | M18: 39 | N18: 0 | O18: 0 | P18: 0 | Q18: 0
E19: 市质量技术监督局昭化分局 | F19: 21 | G19: 0 | H19: 0 | I19: 0 | J19: 0 | K19: 0 | L19: 0 | M19: 21 | N19: 0 | O19: 0 | P19: 0 | Q19: 0
A20: 201 | B20: 38 | C20: 01 | D20: 358605 | E20: 行政运行 | F20: 21 | G20: 0 | H20: 0 | I20: 0 | J20: 0 | K20: 0 | L20: 0 | M20: 21 | N20: 0 | O20: 0 | P20: 0 | Q20: 0
E21: 市质量技术监督局朝天分局 | F21: 39 | G21: 0 | H21: 0 | I21: 0 | J21: 0 | K21: 0 | L21: 0 | M21: 39 | N21: 0 | O21: 0 | P21: 0 | Q21: 0
A22: 208 | B22: 05 | C22: 01 | D22: 358606 | E22: 归口管理的行政单位离退休 | F22: 39 | G22: 0 | H22: 0 | I22: 0 | J22: 0 | K22: 0 | L22: 0 | M22: 39 | N22: 0 | O22: 0 | P22: 0 | Q22: 0

Sheet 9
A1: 表9
A2: 专项支出预算表
A3: 市质量技术监督局 | J3: 单位:百元
A4: 项目 | E4: 金额 | H4: 其中：经费拨款
A5: 科目编码 | D5: 单位名称（项目名称） | E5: 合计 | F5: 当年安排 | G5: 上年结转 | H5: 合计 | I5: 当年安排 | J5: 上年结转
A6: 类 | B6: 款 | C6: 项
D7: 合计 | E7: 84598 | F7: 84598 | G7: 0 | H7: 15392 | I7: 15392 | J7: 0
D8: 市质量技术监督局 | E8: 84598 | F8: 84598 | G8: 0 | H8: 15392 | I8: 15392 | J8: 0
D9: 市质量技术监督局 | E9: 11614 | F9: 11614 | G9: 0 | H9: 8308 | I9: 8308 | J9: 0
D10: 一般行政管理事务 | E10: 8514 | F10: 8514 | G10: 0 | H10: 5208 | I10: 5208 | J10: 0
A11: 201 | B11: 38 | C11: 02 | D11: 扶贫项目 | E11: 372 | F11: 372 | G11: 0 | H11: 372 | I11: 372 | J11: 0
A12: 201 | B12: 38 | C12: 02 | D12: 非税收入征收成本支出 | E12: 3306 | F12: 3306 | G12: 0 | H12: 0 | I12: 0 | J12: 0
A13: 201 | B13: 38 | C13: 02 | D13: 质监工作运行经费 | E13: 4836 | F13: 4836 | G13: 0 | H13: 4836 | I13: 4836 | J13: 0
D14: 机关服务 | E14: 3100 | F14: 3100 | G14: 0 | H14: 3100 | I14: 3100 | J14: 0
A15: 201 | B15: 38 | C15: 03 | D15: 信息化运维 | E15: 2100 | F15: 2100 | G15: 0 | H15: 2100 | I15: 2100 | J15: 0
A16: 201 | B16: 38 | C16: 03 | D16: 设施设备维修 | E16: 1000 | F16: 1000 | G16: 0 | H16: 1000 | I16: 1000 | J16: 0
D17: 市产品质量监督检验所 | E17: 17540 | F17: 17540 | G17: 0 | H17: 6540 | I17: 6540 | J17: 0
D18: 市场监督管理技术支持 | E18: 16400 | F18: 16400 | G18: 0 | H18: 6400 | I18: 6400 | J18: 0
A19: 201 | B19: 38 | C19: 09 | D19: 质检运行工作经费 | E19: 9470 | F19: 9470 | G19: 0 | H19: 0 | I19: 0 | J19: 0
A20: 201 | B20: 38 | C20: 09 | D20: 办公设备购置 | E20: 530 | F20: 530 | G20: 0 | H20: 0 | I20: 0 | J20: 0
A21: 201 | B21: 38 | C21: 09 | D21: 产品质量监督抽查经费 | E21: 6400 | F21: 6400 | G21: 0 | H21: 6400 | I21: 6400 | J21: 0
D22: 其他市场监督管理事务 | E22: 1140 | F22: 1140 | G22: 0 | H22: 140 | I22: 140 | J22: 0
A23: 201 | B23: 38 | C23: 99 | D23: 扶贫经费 | E23: 1140 | F23: 1140 | G23: 0 | H23: 140 | I23: 140 | J23: 0
D24: 市计量检定测试所 | E24: 24372 | F24: 24372 | G24: 0 | H24: 372 | I24: 372 | J24: 0
D25: 市场监督管理技术支持 | E25: 24000 | F25: 24000 | G25: 0 | H25: 0 | I25: 0 | J25: 0
A26: 201 | B26: 38 | C26: 09 | D26: 计检运行经费(含聘用人员工资及保险) | E26: 20000 | F26: 20000 | G26: 0 | H26: 0 | I26: 0 | J26: 0
A27: 201 | B27: 38 | C27: 09 | D27: 设备购置费 | E27: 4000 | F27: 4000 | G27: 0 | H27: 0 | I27: 0 | J27: 0
D28: 其他市场监督管理事务 | E28: 372 | F28: 372 | G28: 0 | H28: 372 | I28: 372 | J28: 0
A29: 201 | B29: 38 | C29: 99 | D29: 驻村帮扶经费 | E29: 372 | F29: 372 | G29: 0 | H29: 372 | I29: 372 | J29: 0
D30: 市特种设备监督检验所 | E30: 30140 | F30: 30140 | G30: 0 | H30: 140 | I30: 140 | J30: 0
D31: 市场监督管理技术支持 | E31: 30000 | F31: 30000 | G31: 0 | H31: 0 | I31: 0 | J31: 0
A32: 201 | B32: 38 | C32: 09 | D32: 非税收入征收成本支出 | E32: 29000 | F32: 29000 | G32: 0 | H32: 0 | I32: 0 | J32: 0
A33: 201 | B33: 38 | C33: 09 | D33: 特检运行经费 | E33: 1000 | F33: 1000 | G33: 0 | H33: 0 | I33: 0 | J33: 0
D34: 其他市场监督管理事务 | E34: 140 | F34: 140 | G34: 0 | H34: 140 | I34: 140 | J34: 0
A35: 201 | B35: 38 | C35: 99 | D35: 扶贫经费 | E35: 140 | F35: 140 | G35: 0 | H35: 140 | I35: 140 | J35: 0
D36: 市质量技术监督局利州分局 | E36: 500 | F36: 500 | G36: 0 | H36: 0 | I36: 0 | J36: 0
D37: 一般行政管理事务 | E37: 500 | F37: 500 | G37: 0 | H37: 0 | I37: 0 | J37: 0
A38: 201 | B38: 38 | C38: 02 | D38: 非税收入征收成本支出 | E38: 500 | F38: 500 | G38: 0 | H38: 0 | I38: 0 | J38: 0
D39: 市质量技术监督局昭化分局 | E39: 200 | F39: 200 | G39: 0 | H39: 0 | I39: 0 | J39: 0
D40: 一般行政管理事务 | E40: 200 | F40: 200 | G40: 0 | H40: 0 | I40: 0 | J40: 0
A41: 201 | B41: 38 | C41: 02 | D41: 非税收入征收成本支出 | E41: 200 | F41: 200 | G41: 0 | H41: 0 | I41: 0 | J41: 0
D42: 市质量技术监督局朝天分局 | E42: 232 | F42: 232 | G42: 0 | H42: 32 | I42: 32 | J42: 0
D43: 一般行政管理事务 | E43: 232 | F43: 232 | G43: 0 | H43: 32 | I43: 32 | J43: 0
A44: 201 | B44: 38 | C44: 02 | D44: 非税收入征收成本支出 | E44: 200 | F44: 200 | G44: 0 | H44: 0 | I44: 0 | J44: 0
A45: 201 | B45: 38 | C45: 02 | D45: 质量品牌创建 | E45: 32 | F45: 32 | G45: 0 | H45: 32 | I45: 32 | J45: 0

Sheet 10
A1: 表10
A2: “三公”经费财政拨款预算表
A3: 市质量技术监督局 | H3: 单位:百元
A4: 单位编码 | B4: 单位名称 | C4: 财政拨款当年预算安排
C5: 合计 | D5: 因公出国(境)费用 | E5: 公务用车购置及运行费 | H5: 公务接待费
E6: 小计 | F6: 公务用车购置费 | G6: 公务用车运行维护费
B7: 合计 | C7: 4491 | D7: 0 | E7: 3310 | F7: 0 | G7: 3310 | H7: 1181
B8: 市质量技术监督局 | C8: 4491 | D8: 0 | E8: 3310 | F8: 0 | G8: 3310 | H8: 1181
A9: 358301 | B9: 市质量技术监督局 | C9: 1150 | D9: 0 | E9: 700 | F9: 0 | G9: 700 | H9: 450
A10: 358601 | B10: 市产品质量监督检验所 | C10: 817 | D10: 0 | E10: 700 | F10: 0 | G10: 700 | H10: 117
A11: 358602 | B11: 市计量检定测试所 | C11: 894 | D11: 0 | E11: 750 | F11: 0 | G11: 750 | H11: 144
A12: 358603 | B12: 市特种设备监督检验所 | C12: 480 | D12: 0 | E12: 420 | F12: 0 | G12: 420 | H12: 60
A13: 358604 | B13: 市质量技术监督局利州分局 | C13: 690 | D13: 0 | E13: 540 | F13: 0 | G13: 540 | H13: 150
A14: 358605 | B14: 市质量技术监督局昭化分局 | C14: 110 | D14: 0 | E14: 0 | F14: 0 | G14: 0 | H14: 110
A15: 358606 | B15: 市质量技术监督局朝天分局 | C15: 350 | D15: 0 | E15: 200 | F15: 0 | G15: 200 | H15: 150

Sheet 11
A2: 财政拨款支出预算表（政府经济分类科目）
A3: 市质量技术监督局 | Y3: 单位：百元
A4: 项 目 | E4: 总计 | F4: 当年财政拨款安排 | P4: 上年结转安排
A5: 科目编码 | C5: 单位代码 | D5: 单位名称（科目） | F5: 合计 | G5: 一般公共预算安排 | J5: 政府性基金预算 | M5: 国有资本经营预算 | P5: 合计 | Q5: 一般公共预算安排 | T5: 政府性基金预算 | W5: 国有资本经营预算
A6: 类 | B6: 款 | G6: 小计 | H6: 基本支出 | I6: 项目支出 | J6: 小计 | K6: 基本支出 | L6: 项目支出 | M6: 小计 | N6: 基本支出 | O6: 项目支出 | Q6: 小计 | R6: 基本支出 | S6: 项目支出 | T6: 小计 | U6: 基本支出 | V6: 项目支出 | W6: 小计 | X6: 基本支出 | Y6: 项目支出
A7: ** | B7: ** | C7: ** | D7: ** | E7: 1 | F7: 2 | G7: 3 | H7: 4 | I7: 5 | J7: 6 | K7: 7 | L7: 8 | M7: 9 | N7: 10 | O7: 11 | P7: 12 | Q7: 13 | R7: 14 | S7: 15 | T7: 16 | U7: 17 | V7: 18 | W7: 19 | X7: 20 | Y7: 21
D8: 合计 | E8: =SUM(F8,P8) -> 277073 | F8: =SUM(G8,J8,M8) -> 277073 | G8: =SUM(H8:I8) -> 277073 | H8: 228475 | I8: 48598 | J8: =SUM(K8:L8) -> 0 | K8: 0 | L8: 0 | M8: =SUM(N8:O8) -> 0 | N8: 0 | O8: 0 | P8: =SUM(Q8,T8,W8) -> 0 | Q8: =SUM(R8:S8) -> 0 | R8: 0 | S8: 0 | T8: =SUM(U8:V8) -> 0 | U8: 0 | V8: 0 | W8: =SUM(X8:Y8) -> 0 | X8: 0 | Y8: 0
D9: 市质量技术监督局 | E9: 89216 | F9: 89216 | G9: 89216 | H9: 77602 | I9: 11614 | J9: 0 | K9: 0 | L9: 0 | M9: 0 | N9: 0 | O9: 0 | P9: 0 | Q9: 0 | R9: 0 | S9: 0 | T9: 0 | U9: 0 | V9: 0 | W9: 0 | X9: 0 | Y9: 0
D10: 机关工资福利支出 | E10: 57632 | F10: 57632 | G10: 57632 | H10: 57632 | I10: 0 | J10: 0 | K10: 0 | L10: 0 | M10: 0 | N10: 0 | O10: 0 | P10: 0 | Q10: 0 | R10: 0 | S10: 0 | T10: 0 | U10: 0 | V10: 0 | W10: 0 | X10: 0 | Y10: 0
A11: 501 | B11: 50101 | C11: 358301 | D11: 工资奖金津补贴 | E11: 40136 | F11: 40136 | G11: 40136 | H11: 40136 | I11: 0 | J11: 0 | K11: 0 | L11: 0 | M11: 0 | N11: 0 | O11: 0 | P11: 0 | Q11: 0 | R11: 0 | S11: 0 | T11: 0 | U11: 0 | V11: 0 | W11: 0 | X11: 0 | Y11: 0
A12: 501 | B12: 50102 | C12: 358301 | D12: 社会保障缴费 | E12: 11132 | F12: 11132 | G12: 11132 | H12: 11132 | I12: 0 | J12: 0 | K12: 0 | L12: 0 | M12: 0 | N12: 0 | O12: 0 | P12: 0 | Q12: 0 | R12: 0 | S12: 0 | T12: 0 | U12: 0 | V12: 0 | W12: 0 | X12: 0 | Y12: 0
A13: 501 | B13: 50103 | C13: 358301 | D13: 住房公积金 | E13: 6364 | F13: 6364 | G13: 6364 | H13: 6364 | I13: 0 | J13: 0 | K13: 0 | L13: 0 | M13: 0 | N13: 0 | O13: 0 | P13: 0 | Q13: 0 | R13: 0 | S13: 0 | T13: 0 | U13: 0 | V13: 0 | W13: 0 | X13: 0 | Y13: 0
D14: 机关商品和服务支出 | E14: 19583 | F14: 19583 | G14: 19583 | H14: 19583 | I14: 0 | J14: 0 | K14: 0 | L14: 0 | M14: 0 | N14: 0 | O14: 0 | P14: 0 | Q14: 0 | R14: 0 | S14: 0 | T14: 0 | U14: 0 | V14: 0 | W14: 0 | X14: 0 | Y14: 0
A15: 502 | B15: 50201 | C15: 358301 | D15: 办公经费 | E15: 12240 | F15: 12240 | G15: 12240 | H15: 12240 | I15: 0 | J15: 0 | K15: 0 | L15: 0 | M15: 0 | N15: 0 | O15: 0 | P15: 0 | Q15: 0 | R15: 0 | S15: 0 | T15: 0 | U15: 0 | V15: 0 | W15: 0 | X15: 0 | Y15: 0
A16: 502 | B16: 50202 | C16: 358301 | D16: 会议费 | E16: 300 | F16: 300 | G16: 300 | H16: 300 | I16: 0 | J16: 0 | K16: 0 | L16: 0 | M16: 0 | N16: 0 | O16: 0 | P16: 0 | Q16: 0 | R16: 0 | S16: 0 | T16: 0 | U16: 0 | V16: 0 | W16: 0 | X16: 0 | Y16: 0
A17: 502 | B17: 50203 | C17: 358301 | D17: 培训费 | E17: 300 | F17: 300 | G17: 300 | H17: 300 | I17: 0 | J17: 0 | K17: 0 | L17: 0 | M17: 0 | N17: 0 | O17: 0 | P17: 0 | Q17: 0 | R17: 0 | S17: 0 | T17: 0 | U17: 0 | V17: 0 | W17: 0 | X17: 0 | Y17: 0
A18: 502 | B18: 50205 | C18: 358301 | D18: 委托业务费 | E18: 200 | F18: 200 | G18: 200 | H18: 200 | I18: 0 | J18: 0 | K18: 0 | L18: 0 | M18: 0 | N18: 0 | O18: 0 | P18: 0 | Q18: 0 | R18: 0 | S18: 0 | T18: 0 | U18: 0 | V18: 0 | W18: 0 | X18: 0 | Y18: 0
A19: 502 | B19: 50206 | C19: 358301 | D19: 公务接待费 | E19: 450 | F19: 450 | G19: 450 | H19: 450 | I19: 0 | J19: 0 | K19: 0 | L19: 0 | M19: 0 | N19: 0 | O19: 0 | P19: 0 | Q19: 0 | R19: 0 | S19: 0 | T19: 0 | U19: 0 | V19: 0 | W19: 0 | X19: 0 | Y19: 0
A20: 502 | B20: 50208 | C20: 358301 | D20: 公务用车运行维护费 | E20: 700 | F20: 700 | G20: 700 | H20: 700 | I20: 0 | J20: 0 | K20: 0 | L20: 0 | M20: 0 | N20: 0 | O20: 0 | P20: 0 | Q20: 0 | R20: 0 | S20: 0 | T20: 0 | U20: 0 | V20: 0 | W20: 0 | X20: 0 | Y20: 0
A21: 502 | B21: 50209 | C21: 358301 | D21: 维修（护）费 | E21: 300 | F21: 300 | G21: 300 | H21: 300 | I21: 0 | J21: 0 | K21: 0 | L21: 0 | M21: 0 | N21: 0 | O21: 0 | P21: 0 | Q21: 0 | R21: 0 | S21: 0 | T21: 0 | U21: 0 | V21: 0 | W21: 0 | X21: 0 | Y21: 0
A22: 502 | B22: 50299 | C22: 358301 | D22: 其他商品和服务支出 | E22: 5093 | F22: 5093 | G22: 5093 | H22: 5093 | I22: 0 | J22: 0 | K22: 0 | L22: 0 | M22: 0 | N22: 0 | O22: 0 | P22: 0 | Q22: 0 | R22: 0 | S22: 0 | T22: 0 | U22: 0 | V22: 0 | W22: 0 | X22: 0 | Y22: 0
D23: 机关资本性支出（一） | E23: 3306 | F23: 3306 | G23: 3306 | H23: 0 | I23: 3306 | J23: 0 | K23: 0 | L23: 0 | M23: 0 | N23: 0 | O23: 0 | P23: 0 | Q23: 0 | R23: 0 | S23: 0 | T23: 0 | U23: 0 | V23: 0 | W23: 0 | X23: 0 | Y23: 0
A24: 503 | B24: 50399 | C24: 358301 | D24: 其他资本性支出 | E24: 3306 | F24: 3306 | G24: 3306 | H24: 0 | I24: 3306 | J24: 0 | K24: 0 | L24: 0 | M24: 0 | N24: 0 | O24: 0 | P24: 0 | Q24: 0 | R24: 0 | S24: 0 | T24: 0 | U24: 0 | V24: 0 | W24: 0 | X24: 0 | Y24: 0
D25: 对个人和家庭的补助 | E25: 387 | F25: 387 | G25: 387 | H25: 387 | I25: 0 | J25: 0 | K25: 0 | L25: 0 | M25: 0 | N25: 0 | O25: 0 | P25: 0 | Q25: 0 | R25: 0 | S25: 0 | T25: 0 | U25: 0 | V25: 0 | W25: 0 | X25: 0 | Y25: 0
A26: 509 | B26: 50901 | C26: 358301 | D26: 社会福利和救助 | E26: 387 | F26: 387 | G26: 387 | H26: 387 | I26: 0 | J26: 0 | K26: 0 | L26: 0 | M26: 0 | N26: 0 | O26: 0 | P26: 0 | Q26: 0 | R26: 0 | S26: 0 | T26: 0 | U26: 0 | V26: 0 | W26: 0 | X26: 0 | Y26: 0
D27: 其他支出 | E27: 8308 | F27: 8308 | G27: 8308 | H27: 0 | I27: 8308 | J27: 0 | K27: 0 | L27: 0 | M27: 0 | N27: 0 | O27: 0 | P27: 0 | Q27: 0 | R27: 0 | S27: 0 | T27: 0 | U27: 0 | V27: 0 | W27: 0 | X27: 0 | Y27: 0
A28: 599 | B28: 59999 | C28: 358301 | D28: 其他支出 | E28: 8308 | F28: 8308 | G28: 8308 | H28: 0 | I28: 8308 | J28: 0 | K28: 0 | L28: 0 | M28: 0 | N28: 0 | O28: 0 | P28: 0 | Q28: 0 | R28: 0 | S28: 0 | T28: 0 | U28: 0 | V28: 0 | W28: 0 | X28: 0 | Y28: 0
D29: 市产品质量监督检验所 | E29: 34024 | F29: 34024 | G29: 34024 | H29: 27484 | I29: 6540 | J29: 0 | K29: 0 | L29: 0 | M29: 0 | N29: 0 | O29: 0 | P29: 0 | Q29: 0 | R29: 0 | S29: 0 | T29: 0 | U29: 0 | V29: 0 | W29: 0 | X29: 0 | Y29: 0
D30: 对事业单位经常性补助 | E30: 27472 | F30: 27472 | G30: 27472 | H30: 27472 | I30: 0 | J30: 0 | K30: 0 | L30: 0 | M30: 0 | N30: 0 | O30: 0 | P30: 0 | Q30: 0 | R30: 0 | S30: 0 | T30: 0 | U30: 0 | V30: 0 | W30: 0 | X30: 0 | Y30: 0
A31: 505 | B31: 50501 | C31: 358601 | D31: 工资福利支出 | E31: 22855 | F31: 22855 | G31: 22855 | H31: 22855 | I31: 0 | J31: 0 | K31: 0 | L31: 0 | M31: 0 | N31: 0 | O31: 0 | P31: 0 | Q31: 0 | R31: 0 | S31: 0 | T31: 0 | U31: 0 | V31: 0 | W31: 0 | X31: 0 | Y31: 0
A32: 505 | B32: 50502 | C32: 358601 | D32: 商品和服务支出 | E32: 4617 | F32: 4617 | G32: 4617 | H32: 4617 | I32: 0 | J32: 0 | K32: 0 | L32: 0 | M32: 0 | N32: 0 | O32: 0 | P32: 0 | Q32: 0 | R32: 0 | S32: 0 | T32: 0 | U32: 0 | V32: 0 | W32: 0 | X32: 0 | Y32: 0
D33: 对个人和家庭的补助 | E33: 12 | F33: 12 | G33: 12 | H33: 12 | I33: 0 | J33: 0 | K33: 0 | L33: 0 | M33: 0 | N33: 0 | O33: 0 | P33: 0 | Q33: 0 | R33: 0 | S33: 0 | T33: 0 | U33: 0 | V33: 0 | W33: 0 | X33: 0 | Y33: 0
A34: 509 | B34: 50901 | C34: 358601 | D34: 社会福利和救助 | E34: 12 | F34: 12 | G34: 12 | H34: 12 | I34: 0 | J34: 0 | K34: 0 | L34: 0 | M34: 0 | N34: 0 | O34: 0 | P34: 0 | Q34: 0 | R34: 0 | S34: 0 | T34: 0 | U34: 0 | V34: 0 | W34: 0 | X34: 0 | Y34: 0
D35: 其他支出 | E35: 6540 | F35: 6540 | G35: 6540 | H35: 0 | I35: 6540 | J35: 0 | K35: 0 | L35: 0 | M35: 0 | N35: 0 | O35: 0 | P35: 0 | Q35: 0 | R35: 0 | S35: 0 | T35: 0 | U35: 0 | V35: 0 | W35: 0 | X35: 0 | Y35: 0
A36: 599 | B36: 59999 | C36: 358601 | D36: 其他支出 | E36: 6540 | F36: 6540 | G36: 6540 | H36: 0 | I36: 6540 | J36: 0 | K36: 0 | L36: 0 | M36: 0 | N36: 0 | O36: 0 | P36: 0 | Q36: 0 | R36: 0 | S36: 0 | T36: 0 | U36: 0 | V36: 0 | W36: 0 | X36: 0 | Y36: 0
D37: 市计量检定测试所 | E37: 37423 | F37: 37423 | G37: 37423 | H37: 37051 | I37: 372 | J37: 0 | K37: 0 | L37: 0 | M37: 0 | N37: 0 | O37: 0 | P37: 0 | Q37: 0 | R37: 0 | S37: 0 | T37: 0 | U37: 0 | V37: 0 | W37: 0 | X37: 0 | Y37: 0
D38: 对事业单位经常性补助 | E38: 37031 | F38: 37031 | G38: 37031 | H38: 37031 | I38: 0 | J38: 0 | K38: 0 | L38: 0 | M38: 0 | N38: 0 | O38: 0 | P38: 0 | Q38: 0 | R38: 0 | S38: 0 | T38: 0 | U38: 0 | V38: 0 | W38: 0 | X38: 0 | Y38: 0
A39: 505 | B39: 50501 | C39: 358602 | D39: 工资福利支出 | E39: 30669 | F39: 30669 | G39: 30669 | H39: 30669 | I39: 0 | J39: 0 | K39: 0 | L39: 0 | M39: 0 | N39: 0 | O39: 0 | P39: 0 | Q39: 0 | R39: 0 | S39: 0 | T39: 0 | U39: 0 | V39: 0 | W39: 0 | X39: 0 | Y39: 0
A40: 505 | B40: 50502 | C40: 358602 | D40: 商品和服务支出 | E40: =SUM(F40,P40) -> 6362 | F40: =SUM(G40,J40,M40) -> 6362 | G40: =SUM(H40:I40) -> 6362 | H40: 6362 | I40: 0 | J40: =SUM(K40:L40) -> 0 | K40: 0 | L40: 0 | M40: =SUM(N40:O40) -> 0 | N40: 0 | O40: 0 | P40: =SUM(Q40,T40,W40) -> 0 | Q40: =SUM(R40:S40) -> 0 | R40: 0 | S40: 0 | T40: =SUM(U40:V40) -> 0 | U40: 0 | V40: 0 | W40: =SUM(X40:Y40) -> 0 | X40: 0 | Y40: 0
D41: 对个人和家庭的补助 | E41: 20 | F41: 20 | G41: 20 | H41: 20 | I41: 0 | J41: 0 | K41: 0 | L41: 0 | M41: 0 | N41: 0 | O41: 0 | P41: 0 | Q41: 0 | R41: 0 | S41: 0 | T41: 0 | U41: 0 | V41: 0 | W41: 0 | X41: 0 | Y41: 0
A42: 509 | B42: 50901 | C42: 358602 | D42: 社会福利和救助 | E42: 20 | F42: 20 | G42: 20 | H42: 20 | I42: 0 | J42: 0 | K42: 0 | L42: 0 | M42: 0 | N42: 0 | O42: 0 | P42: 0 | Q42: 0 | R42: 0 | S42: 0 | T42: 0 | U42: 0 | V42: 0 | W42: 0 | X42: 0 | Y42: 0
D43: 其他支出 | E43: 372 | F43: 372 | G43: 372 | H43: 0 | I43: 372 | J43: 0 | K43: 0 | L43: 0 | M43: 0 | N43: 0 | O43: 0 | P43: 0 | Q43: 0 | R43: 0 | S43: 0 | T43: 0 | U43: 0 | V43: 0 | W43: 0 | X43: 0 | Y43: 0
A44: 599 | B44: 59999 | C44: 358602 | D44: 其他支出 | E44: 372 | F44: 372 | G44: 372 | H44: 0 | I44: 372 | J44: 0 | K44: 0 | L44: 0 | M44: 0 | N44: 0 | O44: 0 | P44: 0 | Q44: 0 | R44: 0 | S44: 0 | T44: 0 | U44: 0 | V44: 0 | W44: 0 | X44: 0 | Y44: 0
D45: 市特种设备监督检验所 | E45: 49462 | F45: 49462 | G45: 49462 | H45: 20322 | I45: 29140 | J45: 0 | K45: 0 | L45: 0 | M45: 0 | N45: 0 | O45: 0 | P45: 0 | Q45: 0 | R45: 0 | S45: 0 | T45: 0 | U45: 0 | V45: 0 | W45: 0 | X45: 0 | Y45: 0
D46: 对事业单位经常性补助 | E46: 20297 | F46: 20297 | G46: 20297 | H46: 20297 | I46: 0 | J46: 0 | K46: 0 | L46: 0 | M46: 0 | N46: 0 | O46: 0 | P46: 0 | Q46: 0 | R46: 0 | S46: 0 | T46: 0 | U46: 0 | V46: 0 | W46: 0 | X46: 0 | Y46: 0
A47: 505 | B47: 50501 | C47: 358603 | D47: 工资福利支出 | E47: 16792 | F47: 16792 | G47: 16792 | H47: 16792 | I47: 0 | J47: 0 | K47: 0 | L47: 0 | M47: 0 | N47: 0 | O47: 0 | P47: 0 | Q47: 0 | R47: 0 | S47: 0 | T47: 0 | U47: 0 | V47: 0 | W47: 0 | X47: 0 | Y47: 0
A48: 505 | B48: 50502 | C48: 358603 | D48: 商品和服务支出 | E48: 3505 | F48: 3505 | G48: 3505 | H48: 3505 | I48: 0 | J48: 0 | K48: 0 | L48: 0 | M48: 0 | N48: 0 | O48: 0 | P48: 0 | Q48: 0 | R48: 0 | S48: 0 | T48: 0 | U48: 0 | V48: 0 | W48: 0 | X48: 0 | Y48: 0
D49: 对事业单位资本性补助 | E49: 29000 | F49: 29000 | G49: 29000 | H49: 0 | I49: 29000 | J49: 0 | K49: 0 | L49: 0 | M49: 0 | N49: 0 | O49: 0 | P49: 0 | Q49: 0 | R49: 0 | S49: 0 | T49: 0 | U49: 0 | V49: 0 | W49: 0 | X49: 0 | Y49: 0
A50: 506 | B50: 50601 | C50: 358603 | D50: 资本性支出（一） | E50: 29000 | F50: 29000 | G50: 29000 | H50: 0 | I50: 29000 | J50: 0 | K50: 0 | L50: 0 | M50: 0 | N50: 0 | O50: 0 | P50: 0 | Q50: 0 | R50: 0 | S50: 0 | T50: 0 | U50: 0 | V50: 0 | W50: 0 | X50: 0 | Y50: 0
D51: 对个人和家庭的补助 | E51: 25 | F51: 25 | G51: 25 | H51: 25 | I51: 0 | J51: 0 | K51: 0 | L51: 0 | M51: 0 | N51: 0 | O51: 0 | P51: 0 | Q51: 0 | R51: 0 | S51: 0 | T51: 0 | U51: 0 | V51: 0 | W51: 0 | X51: 0 | Y51: 0
A52: 509 | B52: 50901 | C52: 358603 | D52: 社会福利和救助 | E52: 25 | F52: 25 | G52: 25 | H52: 25 | I52: 0 | J52: 0 | K52: 0 | L52: 0 | M52: 0 | N52: 0 | O52: 0 | P52: 0 | Q52: 0 | R52: 0 | S52: 0 | T52: 0 | U52: 0 | V52: 0 | W52: 0 | X52: 0 | Y52: 0
D53: 其他支出 | E53: 140 | F53: 140 | G53: 140 | H53: 0 | I53: 140 | J53: 0 | K53: 0 | L53: 0 | M53: 0 | N53: 0 | O53: 0 | P53: 0 | Q53: 0 | R53: 0 | S53: 0 | T53: 0 | U53: 0 | V53: 0 | W53: 0 | X53: 0 | Y53: 0
A54: 599 | B54: 59999 | C54: 358603 | D54: 其他支出 | E54: 140 | F54: 140 | G54: 140 | H54: 0 | I54: 140 | J54: 0 | K54: 0 | L54: 0 | M54: 0 | N54: 0 | O54: 0 | P54: 0 | Q54: 0 | R54: 0 | S54: 0 | T54: 0 | U54: 0 | V54: 0 | W54: 0 | X54: 0 | Y54: 0
D55: 市质量技术监督局利州分局 | E55: 30106 | F55: 30106 | G55: 30106 | H55: 29606 | I55: 500 | J55: 0 | K55: 0 | L55: 0 | M55: 0 | N55: 0 | O55: 0 | P55: 0 | Q55: 0 | R55: 0 | S55: 0 | T55: 0 | U55: 0 | V55: 0 | W55: 0 | X55: 0 | Y55: 0
D56: 机关工资福利支出 | E56: 20142 | F56: 20142 | G56: 20142 | H56: 20142 | I56: 0 | J56: 0 | K56: 0 | L56: 0 | M56: 0 | N56: 0 | O56: 0 | P56: 0 | Q56: 0 | R56: 0 | S56: 0 | T56: 0 | U56: 0 | V56: 0 | W56: 0 | X56: 0 | Y56: 0
A57: 501 | B57: 50101 | C57: 358604 | D57: 工资奖金津补贴 | E57: 13219 | F57: 13219 | G57: 13219 | H57: 13219 | I57: 0 | J57: 0 | K57: 0 | L57: 0 | M57: 0 | N57: 0 | O57: 0 | P57: 0 | Q57: 0 | R57: 0 | S57: 0 | T57: 0 | U57: 0 | V57: 0 | W57: 0 | X57: 0 | Y57: 0
A58: 501 | B58: 50102 | C58: 358604 | D58: 社会保障缴费 | E58: 4378 | F58: 4378 | G58: 4378 | H58: 4378 | I58: 0 | J58: 0 | K58: 0 | L58: 0 | M58: 0 | N58: 0 | O58: 0 | P58: 0 | Q58: 0 | R58: 0 | S58: 0 | T58: 0 | U58: 0 | V58: 0 | W58: 0 | X58: 0 | Y58: 0
A59: 501 | B59: 50103 | C59: 358604 | D59: 住房公积金 | E59: 2545 | F59: 2545 | G59: 2545 | H59: 2545 | I59: 0 | J59: 0 | K59: 0 | L59: 0 | M59: 0 | N59: 0 | O59: 0 | P59: 0 | Q59: 0 | R59: 0 | S59: 0 | T59: 0 | U59: 0 | V59: 0 | W59: 0 | X59: 0 | Y59: 0
D60: 机关商品和服务支出 | E60: 7059 | F60: 7059 | G60: 7059 | H60: 7059 | I60: 0 | J60: 0 | K60: 0 | L60: 0 | M60: 0 | N60: 0 | O60: 0 | P60: 0 | Q60: 0 | R60: 0 | S60: 0 | T60: 0 | U60: 0 | V60: 0 | W60: 0 | X60: 0 | Y60: 0
A61: 502 | B61: 50201 | C61: 358604 | D61: 办公经费 | E61: 4730 | F61: 4730 | G61: 4730 | H61: 4730 | I61: 0 | J61: 0 | K61: 0 | L61: 0 | M61: 0 | N61: 0 | O61: 0 | P61: 0 | Q61: 0 | R61: 0 | S61: 0 | T61: 0 | U61: 0 | V61: 0 | W61: 0 | X61: 0 | Y61: 0
A62: 502 | B62: 50202 | C62: 358604 | D62: 会议费 | E62: 400 | F62: 400 | G62: 400 | H62: 400 | I62: 0 | J62: 0 | K62: 0 | L62: 0 | M62: 0 | N62: 0 | O62: 0 | P62: 0 | Q62: 0 | R62: 0 | S62: 0 | T62: 0 | U62: 0 | V62: 0 | W62: 0 | X62: 0 | Y62: 0
A63: 502 | B63: 50203 | C63: 358604 | D63: 培训费 | E63: 210 | F63: 210 | G63: 210 | H63: 210 | I63: 0 | J63: 0 | K63: 0 | L63: 0 | M63: 0 | N63: 0 | O63: 0 | P63: 0 | Q63: 0 | R63: 0 | S63: 0 | T63: 0 | U63: 0 | V63: 0 | W63: 0 | X63: 0 | Y63: 0
A64: 502 | B64: 50205 | C64: 358604 | D64: 委托业务费 | E64: 200 | F64: 200 | G64: 200 | H64: 200 | I64: 0 | J64: 0 | K64: 0 | L64: 0 | M64: 0 | N64: 0 | O64: 0 | P64: 0 | Q64: 0 | R64: 0 | S64: 0 | T64: 0 | U64: 0 | V64: 0 | W64: 0 | X64: 0 | Y64: 0
A65: 502 | B65: 50206 | C65: 358604 | D65: 公务接待费 | E65: 150 | F65: 150 | G65: 150 | H65: 150 | I65: 0 | J65: 0 | K65: 0 | L65: 0 | M65: 0 | N65: 0 | O65: 0 | P65: 0 | Q65: 0 | R65: 0 | S65: 0 | T65: 0 | U65: 0 | V65: 0 | W65: 0 | X65: 0 | Y65: 0
A66: 502 | B66: 50208 | C66: 358604 | D66: 公务用车运行维护费 | E66: 540 | F66: 540 | G66: 540 | H66: 540 | I66: 0 | J66: 0 | K66: 0 | L66: 0 | M66: 0 | N66: 0 | O66: 0 | P66: 0 | Q66: 0 | R66: 0 | S66: 0 | T66: 0 | U66: 0 | V66: 0 | W66: 0 | X66: 0 | Y66: 0
A67: 502 | B67: 50209 | C67: 358604 | D67: 维修（护）费 | E67: 100 | F67: 100 | G67: 100 | H67: 100 | I67: 0 | J67: 0 | K67: 0 | L67: 0 | M67: 0 | N67: 0 | O67: 0 | P67: 0 | Q67: 0 | R67: 0 | S67: 0 | T67: 0 | U67: 0 | V67: 0 | W67: 0 | X67: 0 | Y67: 0
A68: 502 | B68: 50299 | C68: 358604 | D68: 其他商品和服务支出 | E68: 729 | F68: 729 | G68: 729 | H68: 729 | I68: 0 | J68: 0 | K68: 0 | L68: 0 | M68: 0 | N68: 0 | O68: 0 | P68: 0 | Q68: 0 | R68: 0 | S68: 0 | T68: 0 | U68: 0 | V68: 0 | W68: 0 | X68: 0 | Y68: 0
D69: 机关资本性支出（一） | E69: 500 | F69: 500 | G69: 500 | H69: 0 | I69: 500 | J69: 0 | K69: 0 | L69: 0 | M69: 0 | N69: 0 | O69: 0 | P69: 0 | Q69: 0 | R69: 0 | S69: 0 | T69: 0 | U69: 0 | V69: 0 | W69: 0 | X69: 0 | Y69: 0
A70: 503 | B70: 50399 | C70: 358604 | D70: 其他资本性支出 | E70: 500 | F70: 500 | G70: 500 | H70: 0 | I70: 500 | J70: 0 | K70: 0 | L70: 0 | M70: 0 | N70: 0 | O70: 0 | P70: 0 | Q70: 0 | R70: 0 | S70: 0 | T70: 0 | U70: 0 | V70: 0 | W70: 0 | X70: 0 | Y70: 0
D71: 对事业单位经常性补助 | E71: 2366 | F71: 2366 | G71: 2366 | H71: 2366 | I71: 0 | J71: 0 | K71: 0 | L71: 0 | M71: 0 | N71: 0 | O71: 0 | P71: 0 | Q71: 0 | R71: 0 | S71: 0 | T71: 0 | U71: 0 | V71: 0 | W71: 0 | X71: 0 | Y71: 0
A72: 505 | B72: 50501 | C72: 358604 | D72: 工资福利支出 | E72: =SUM(F72,P72) -> 2366 | F72: =SUM(G72,J72,M72) -> 2366 | G72: =SUM(H72:I72) -> 2366 | H72: 2366 | I72: 0 | J72: =SUM(K72:L72) -> 0 | K72: 0 | L72: 0 | M72: =SUM(N72:O72) -> 0 | N72: 0 | O72: 0 | P72: =SUM(Q72,T72,W72) -> 0 | Q72: =SUM(R72:S72) -> 0 | R72: 0 | S72: 0 | T72: =SUM(U72:V72) -> 0 | U72: 0 | V72: 0 | W72: =SUM(X72:Y72) -> 0 | X72: 0 | Y72: 0
D73: 对个人和家庭的补助 | E73: 39 | F73: 39 | G73: 39 | H73: 39 | I73: 0 | J73: 0 | K73: 0 | L73: 0 | M73: 0 | N73: 0 | O73: 0 | P73: 0 | Q73: 0 | R73: 0 | S73: 0 | T73: 0 | U73: 0 | V73: 0 | W73: 0 | X73: 0 | Y73: 0
A74: 509 | B74: 50901 | C74: 358604 | D74: 社会福利和救助 | E74: 39 | F74: 39 | G74: 39 | H74: 39 | I74: 0 | J74: 0 | K74: 0 | L74: 0 | M74: 0 | N74: 0 | O74: 0 | P74: 0 | Q74: 0 | R74: 0 | S74: 0 | T74: 0 | U74: 0 | V74: 0 | W74: 0 | X74: 0 | Y74: 0
D75: 市质量技术监督局昭化分局 | E75: 20132 | F75: 20132 | G75: 20132 | H75: 19932 | I75: 200 | J75: 0 | K75: 0 | L75: 0 | M75: 0 | N75: 0 | O75: 0 | P75: 0 | Q75: 0 | R75: 0 | S75: 0 | T75: 0 | U75: 0 | V75: 0 | W75: 0 | X75: 0 | Y75: 0
D76: 机关工资福利支出 | E76: 14233 | F76: 14233 | G76: 14233 | H76: 14233 | I76: 0 | J76: 0 | K76: 0 | L76: 0 | M76: 0 | N76: 0 | O76: 0 | P76: 0 | Q76: 0 | R76: 0 | S76: 0 | T76: 0 | U76: 0 | V76: 0 | W76: 0 | X76: 0 | Y76: 0
A77: 501 | B77: 50101 | C77: 358605 | D77: 工资奖金津补贴 | E77: 9625 | F77: 9625 | G77: 9625 | H77: 9625 | I77: 0 | J77: 0 | K77: 0 | L77: 0 | M77: 0 | N77: 0 | O77: 0 | P77: 0 | Q77: 0 | R77: 0 | S77: 0 | T77: 0 | U77: 0 | V77: 0 | W77: 0 | X77: 0 | Y77: 0
A78: 501 | B78: 50102 | C78: 358605 | D78: 社会保障缴费 | E78: 2900 | F78: 2900 | G78: 2900 | H78: 2900 | I78: 0 | J78: 0 | K78: 0 | L78: 0 | M78: 0 | N78: 0 | O78: 0 | P78: 0 | Q78: 0 | R78: 0 | S78: 0 | T78: 0 | U78: 0 | V78: 0 | W78: 0 | X78: 0 | Y78: 0
A79: 501 | B79: 50103 | C79: 358605 | D79: 住房公积金 | E79: 1708 | F79: 1708 | G79: 1708 | H79: 1708 | I79: 0 | J79: 0 | K79: 0 | L79: 0 | M79: 0 | N79: 0 | O79: 0 | P79: 0 | Q79: 0 | R79: 0 | S79: 0 | T79: 0 | U79: 0 | V79: 0 | W79: 0 | X79: 0 | Y79: 0
D80: 机关商品和服务支出 | E80: 4907 | F80: 4907 | G80: 4907 | H80: 4907 | I80: 0 | J80: 0 | K80: 0 | L80: 0 | M80: 0 | N80: 0 | O80: 0 | P80: 0 | Q80: 0 | R80: 0 | S80: 0 | T80: 0 | U80: 0 | V80: 0 | W80: 0 | X80: 0 | Y80: 0
A81: 502 | B81: 50201 | C81: 358605 | D81: 办公经费 | E81: 3258 | F81: 3258 | G81: 3258 | H81: 3258 | I81: 0 | J81: 0 | K81: 0 | L81: 0 | M81: 0 | N81: 0 | O81: 0 | P81: 0 | Q81: 0 | R81: 0 | S81: 0 | T81: 0 | U81: 0 | V81: 0 | W81: 0 | X81: 0 | Y81: 0
A82: 502 | B82: 50202 | C82: 358605 | D82: 会议费 | E82: 50 | F82: 50 | G82: 50 | H82: 50 | I82: 0 | J82: 0 | K82: 0 | L82: 0 | M82: 0 | N82: 0 | O82: 0 | P82: 0 | Q82: 0 | R82: 0 | S82: 0 | T82: 0 | U82: 0 | V82: 0 | W82: 0 | X82: 0 | Y82: 0
A83: 502 | B83: 50203 | C83: 358605 | D83: 培训费 | E83: 320 | F83: 320 | G83: 320 | H83: 320 | I83: 0 | J83: 0 | K83: 0 | L83: 0 | M83: 0 | N83: 0 | O83: 0 | P83: 0 | Q83: 0 | R83: 0 | S83: 0 | T83: 0 | U83: 0 | V83: 0 | W83: 0 | X83: 0 | Y83: 0
A84: 502 | B84: 50205 | C84: 358605 | D84: 委托业务费 | E84: 400 | F84: 400 | G84: 400 | H84: 400 | I84: 0 | J84: 0 | K84: 0 | L84: 0 | M84: 0 | N84: 0 | O84: 0 | P84: 0 | Q84: 0 | R84: 0 | S84: 0 | T84: 0 | U84: 0 | V84: 0 | W84: 0 | X84: 0 | Y84: 0
A85: 502 | B85: 50206 | C85: 358605 | D85: 公务接待费 | E85: 110 | F85: 110 | G85: 110 | H85: 110 | I85: 0 | J85: 0 | K85: 0 | L85: 0 | M85: 0 | N85: 0 | O85: 0 | P85: 0 | Q85: 0 | R85: 0 | S85: 0 | T85: 0 | U85: 0 | V85: 0 | W85: 0 | X85: 0 | Y85: 0
A86: 502 | B86: 50209 | C86: 358605 | D86: 维修（护）费 | E86: 100 | F86: 100 | G86: 100 | H86: 100 | I86: 0 | J86: 0 | K86: 0 | L86: 0 | M86: 0 | N86: 0 | O86: 0 | P86: 0 | Q86: 0 | R86: 0 | S86: 0 | T86: 0 | U86: 0 | V86: 0 | W86: 0 | X86: 0 | Y86: 0
A87: 502 | B87: 50299 | C87: 358605 | D87: 其他商品和服务支出 | E87: 669 | F87: 669 | G87: 669 | H87: 669 | I87: 0 | J87: 0 | K87: 0 | L87: 0 | M87: 0 | N87: 0 | O87: 0 | P87: 0 | Q87: 0 | R87: 0 | S87: 0 | T87: 0 | U87: 0 | V87: 0 | W87: 0 | X87: 0 | Y87: 0
D88: 机关资本性支出（一） | E88: 200 | F88: 200 | G88: 200 | H88: 0 | I88: 200 | J88: 0 | K88: 0 | L88: 0 | M88: 0 | N88: 0 | O88: 0 | P88: 0 | Q88: 0 | R88: 0 | S88: 0 | T88: 0 | U88: 0 | V88: 0 | W88: 0 | X88: 0 | Y88: 0
A89: 503 | B89: 50399 | C89: 358605 | D89: 其他资本性支出 | E89: 200 | F89: 200 | G89: 200 | H89: 0 | I89: 200 | J89: 0 | K89: 0 | L89: 0 | M89: 0 | N89: 0 | O89: 0 | P89: 0 | Q89: 0 | R89: 0 | S89: 0 | T89: 0 | U89: 0 | V89: 0 | W89: 0 | X89: 0 | Y89: 0
D90: 对事业单位经常性补助 | E90: 771 | F90: 771 | G90: 771 | H90: 771 | I90: 0 | J90: 0 | K90: 0 | L90: 0 | M90: 0 | N90: 0 | O90: 0 | P90: 0 | Q90: 0 | R90: 0 | S90: 0 | T90: 0 | U90: 0 | V90: 0 | W90: 0 | X90: 0 | Y90: 0
A91: 505 | B91: 50501 | C91: 358605 | D91: 工资福利支出 | E91: 771 | F91: 771 | G91: 771 | H91: 771 | I91: 0 | J91: 0 | K91: 0 | L91: 0 | M91: 0 | N91: 0 | O91: 0 | P91: 0 | Q91: 0 | R91: 0 | S91: 0 | T91: 0 | U91: 0 | V91: 0 | W91: 0 | X91: 0 | Y91: 0
D92: 对个人和家庭的补助 | E92: 21 | F92: 21 | G92: 21 | H92: 21 | I92: 0 | J92: 0 | K92: 0 | L92: 0 | M92: 0 | N92: 0 | O92: 0 | P92: 0 | Q92: 0 | R92: 0 | S92: 0 | T92: 0 | U92: 0 | V92: 0 | W92: 0 | X92: 0 | Y92: 0
A93: 509 | B93: 50901 | C93: 358605 | D93: 社会福利和救助 | E93: 21 | F93: 21 | G93: 21 | H93: 21 | I93: 0 | J93: 0 | K93: 0 | L93: 0 | M93: 0 | N93: 0 | O93: 0 | P93: 0 | Q93: 0 | R93: 0 | S93: 0 | T93: 0 | U93: 0 | V93: 0 | W93: 0 | X93: 0 | Y93: 0
D94: 市质量技术监督局朝天分局 | E94: 16710 | F94: 16710 | G94: 16710 | H94: 16478 | I94: 232 | J94: 0 | K94: 0 | L94: 0 | M94: 0 | N94: 0 | O94: 0 | P94: 0 | Q94: 0 | R94: 0 | S94: 0 | T94: 0 | U94: 0 | V94: 0 | W94: 0 | X94: 0 | Y94: 0
D95: 机关工资福利支出 | E95: 12054 | F95: 12054 | G95: 12054 | H95: 12054 | I95: 0 | J95: 0 | K95: 0 | L95: 0 | M95: 0 | N95: 0 | O95: 0 | P95: 0 | Q95: 0 | R95: 0 | S95: 0 | T95: 0 | U95: 0 | V95: 0 | W95: 0 | X95: 0 | Y95: 0
A96: 501 | B96: 50101 | C96: 358606 | D96: 工资奖金津补贴 | E96: 8378 | F96: 8378 | G96: 8378 | H96: 8378 | I96: 0 | J96: 0 | K96: 0 | L96: 0 | M96: 0 | N96: 0 | O96: 0 | P96: 0 | Q96: 0 | R96: 0 | S96: 0 | T96: 0 | U96: 0 | V96: 0 | W96: 0 | X96: 0 | Y96: 0
A97: 501 | B97: 50102 | C97: 358606 | D97: 社会保障缴费 | E97: 2306 | F97: 2306 | G97: 2306 | H97: 2306 | I97: 0 | J97: 0 | K97: 0 | L97: 0 | M97: 0 | N97: 0 | O97: 0 | P97: 0 | Q97: 0 | R97: 0 | S97: 0 | T97: 0 | U97: 0 | V97: 0 | W97: 0 | X97: 0 | Y97: 0
A98: 501 | B98: 50103 | C98: 358606 | D98: 住房公积金 | E98: 1370 | F98: 1370 | G98: 1370 | H98: 1370 | I98: 0 | J98: 0 | K98: 0 | L98: 0 | M98: 0 | N98: 0 | O98: 0 | P98: 0 | Q98: 0 | R98: 0 | S98: 0 | T98: 0 | U98: 0 | V98: 0 | W98: 0 | X98: 0 | Y98: 0
D99: 机关商品和服务支出 | E99: 4101 | F99: 4101 | G99: 4101 | H99: 4101 | I99: 0 | J99: 0 | K99: 0 | L99: 0 | M99: 0 | N99: 0 | O99: 0 | P99: 0 | Q99: 0 | R99: 0 | S99: 0 | T99: 0 | U99: 0 | V99: 0 | W99: 0 | X99: 0 | Y99: 0
A100: 502 | B100: 50201 | C100: 358606 | D100: 办公经费 | E100: 2781 | F100: 2781 | G100: 2781 | H100: 2781 | I100: 0 | J100: 0 | K100: 0 | L100: 0 | M100: 0 | N100: 0 | O100: 0 | P100: 0 | Q100: 0 | R100: 0 | S100: 0 | T100: 0 | U100: 0 | V100: 0 | W100: 0 | X100: 0 | Y100: 0
A101: 502 | B101: 50202 | C101: 358606 | D101: 会议费 | E101: 40 | F101: 40 | G101: 40 | H101: 40 | I101: 0 | J101: 0 | K101: 0 | L101: 0 | M101: 0 | N101: 0 | O101: 0 | P101: 0 | Q101: 0 | R101: 0 | S101: 0 | T101: 0 | U101: 0 | V101: 0 | W101: 0 | X101: 0 | Y101: 0
A102: 502 | B102: 50203 | C102: 358606 | D102: 培训费 | E102: 40 | F102: 40 | G102: 40 | H102: 40 | I102: 0 | J102: 0 | K102: 0 | L102: 0 | M102: 0 | N102: 0 | O102: 0 | P102: 0 | Q102: 0 | R102: 0 | S102: 0 | T102: 0 | U102: 0 | V102: 0 | W102: 0 | X102: 0 | Y102: 0
A103: 502 | B103: 50205 | C103: 358606 | D103: 委托业务费 | E103: 40 | F103: 40 | G103: 40 | H103: 40 | I103: 0 | J103: 0 | K103: 0 | L103: 0 | M103: 0 | N103: 0 | O103: 0 | P103: 0 | Q103: 0 | R103: 0 | S103: 0 | T103: 0 | U103: 0 | V103: 0 | W103: 0 | X103: 0 | Y103: 0
A104: 502 | B104: 50206 | C104: 358606 | D104: 公务接待费 | E104: =SUM(F104,P104) -> 150 | F104: =SUM(G104,J104,M104) -> 150 | G104: =SUM(H104:I104) -> 150 | H104: 150 | I104: 0 | J104: =SUM(K104:L104) -> 0 | K104: 0 | L104: 0 | M104: =SUM(N104:O104) -> 0 | N104: 0 | O104: 0 | P104: =SUM(Q104,T104,W104) -> 0 | Q104: =SUM(R104:S104) -> 0 | R104: 0 | S104: 0 | T104: =SUM(U104:V104) -> 0 | U104: 0 | V104: 0 | W104: =SUM(X104:Y104) -> 0 | X104: 0 | Y104: 0
A105: 502 | B105: 50208 | C105: 358606 | D105: 公务用车运行维护费 | E105: 200 | F105: 200 | G105: 200 | H105: 200 | I105: 0 | J105: 0 | K105: 0 | L105: 0 | M105: 0 | N105: 0 | O105: 0 | P105: 0 | Q105: 0 | R105: 0 | S105: 0 | T105: 0 | U105: 0 | V105: 0 | W105: 0 | X105: 0 | Y105: 0
A106: 502 | B106: 50299 | C106: 358606 | D106: 其他商品和服务支出 | E106: 850 | F106: 850 | G106: 850 | H106: 850 | I106: 0 | J106: 0 | K106: 0 | L106: 0 | M106: 0 | N106: 0 | O106: 0 | P106: 0 | Q106: 0 | R106: 0 | S106: 0 | T106: 0 | U106: 0 | V106: 0 | W106: 0 | X106: 0 | Y106: 0
D107: 机关资本性支出（一） | E107: 200 | F107: 200 | G107: 200 | H107: 0 | I107: 200 | J107: 0 | K107: 0 | L107: 0 | M107: 0 | N107: 0 | O107: 0 | P107: 0 | Q107: 0 | R107: 0 | S107: 0 | T107: 0 | U107: 0 | V107: 0 | W107: 0 | X107: 0 | Y107: 0
A108: 503 | B108: 50399 | C108: 358606 | D108: 其他资本性支出 | E108: 200 | F108: 200 | G108: 200 | H108: 0 | I108: 200 | J108: 0 | K108: 0 | L108: 0 | M108: 0 | N108: 0 | O108: 0 | P108: 0 | Q108: 0 | R108: 0 | S108: 0 | T108: 0 | U108: 0 | V108: 0 | W108: 0 | X108: 0 | Y108: 0
D109: 对事业单位经常性补助 | E109: 284 | F109: 284 | G109: 284 | H109: 284 | I109: 0 | J109: 0 | K109: 0 | L109: 0 | M109: 0 | N109: 0 | O109: 0 | P109: 0 | Q109: 0 | R109: 0 | S109: 0 | T109: 0 | U109: 0 | V109: 0 | W109: 0 | X109: 0 | Y109: 0
A110: 505 | B110: 50501 | C110: 358606 | D110: 工资福利支出 | E110: 284 | F110: 284 | G110: 284 | H110: 284 | I110: 0 | J110: 0 | K110: 0 | L110: 0 | M110: 0 | N110: 0 | O110: 0 | P110: 0 | Q110: 0 | R110: 0 | S110: 0 | T110: 0 | U110: 0 | V110: 0 | W110: 0 | X110: 0 | Y110: 0
D111: 对个人和家庭的补助 | E111: 39 | F111: 39 | G111: 39 | H111: 39 | I111: 0 | J111: 0 | K111: 0 | L111: 0 | M111: 0 | N111: 0 | O111: 0 | P111: 0 | Q111: 0 | R111: 0 | S111: 0 | T111: 0 | U111: 0 | V111: 0 | W111: 0 | X111: 0 | Y111: 0
A112: 509 | B112: 50901 | C112: 358606 | D112: 社会福利和救助 | E112: 39 | F112: 39 | G112: 39 | H112: 39 | I112: 0 | J112: 0 | K112: 0 | L112: 0 | M112: 0 | N112: 0 | O112: 0 | P112: 0 | Q112: 0 | R112: 0 | S112: 0 | T112: 0 | U112: 0 | V112: 0 | W112: 0 | X112: 0 | Y112: 0
D113: 其他支出 | E113: 32 | F113: 32 | G113: 32 | H113: 0 | I113: 32 | J113: 0 | K113: 0 | L113: 0 | M113: 0 | N113: 0 | O113: 0 | P113: 0 | Q113: 0 | R113: 0 | S113: 0 | T113: 0 | U113: 0 | V113: 0 | W113: 0 | X113: 0 | Y113: 0
A114: 599 | B114: 59999 | C114: 358606 | D114: 其他支出 | E114: 32 | F114: 32 | G114: 32 | H114: 0 | I114: 32 | J114: 0 | K114: 0 | L114: 0 | M114: 0 | N114: 0 | O114: 0 | P114: 0 | Q114: 0 | R114: 0 | S114: 0 | T114: 0 | U114: 0 | V114: 0 | W114: 0 | X114: 0 | Y114: 0

Sheet 12
A1: 表12
A2: 政府性基金支出预算表
H3: 单位：百元
A4: 项 目 | F4: 本年政府性基金预算支出
A5: 科目编码 | D5: 单位代码 | E5: 单位名称（科目） | F5: 合计 | G5: 基本支出 | H5: 项目支出
A6: 类 | B6: 款 | C6: 项
E7: 合计

Sheet 13
A1: 表13
A2: 政府性基金预算“三公”经费支出预算表
H3: 单位：百元
A4: 单位编码 | B4: 单位名称 | C4: 当年财政拨款预算安排
C5: 合计 | D5: 因公出国（境）费用 | E5: 公务用车购置及运行费 | H5: 公务接待费
E6: 小计 | F6: 公务用车购置费 | G6: 公务用车运行费

Sheet 14
A1: 表14
A2: 国有资本经营预算支出预算表
H3: 单位：百元
A4: 项 目 | F4: 本年国有资本经营预算支出
A5: 科目编码 | D5: 单位代码 | E5: 单位名称（科目） | F5: 合计 | G5: 基本支出 | H5: 项目支出
A6: 类 | B6: 款 | C6: 项
